{"text_format":"1","workbook":"xlsx","n_sheets":6,"sheets":["指定請求書について","入力見本","入力フォーム","御社控え","提出用","手書きの方はこちらを印刷して下さい"],"not_rendered":{"charts":0,"images":0,"macros":1,"external_links":0,"defined_names":5,"comments":3,"pivot_tables":0},"unopened":[],"bounds":{"document_bytes":16777216,"sheet_cells":100000,"rows_first":2000,"rows_last":500,"rows_between":2000,"halvings":0,"cell_chars":16384,"cell_head_chars":4096},"cells_cut":0,"cells_raw":0,"read":"whole","date_system":"1900"}

{"sheet":"指定請求書について","index":0,"n_rows":39,"n_cols":22,"rows_kept":39,"cut":false,"hidden":false,"merged":[[18,1,18,2],[29,0,29,24],[0,21,0,24],[2,0,2,24],[4,19,4,24],[6,0,6,24],[15,0,15,24],[3,0,3,1]]}
[null,null,null,null,null,null,null,null,null,null,null,null,null,null,null,null,null,null,null,null,null,"2023-09-01"]
[]
["弊社指定請求書について"]
[]
[null,null,null,null,null,null,null,null,null,null,null,null,null,null,null,null,null,null,null,"株式会社ザイソウハウス"]
[]
["１．様式について"]
[]
["・","本請求書は、株式会社ザイソウハウスの指定請求書です。"]
["・","請求には必ず本様式をお使い下さい。"]
["・","請求書を手書きされる場合は「手書きの方はこちらを印刷して下さい」シートを印刷してご利用下さい。"]
[null,"（「入力フォーム」シートにある「手書き用請求書印刷」のボタンをクリックして印刷できます。）"]
[]
[]
[]
["２．入力について"]
[]
["・","入力は「入力フォーム」シートにお願い致します。"]
["・",null,null,"に網掛けされた部分に必要事項を記入して下さい。"]
["・","数量と単価は小数点第１位までの表記となります。"]
[null,"小数点第２位以下は入力前に調整して下さい。"]
["・","金額の欄には計算式が入っております。"]
[null,"小数点以下は切り捨てとなります。"]
["・","必ず税率区分の記入をお願い致します。"]
["・","必ず日付の欄に納品日もしくは作業日の記入をお願い致します。"]
["・","＜契約外＞の欄に記入しきれない場合は別紙で明細の添付（書式の指定無し）をお願い致します。"]
[]
[]
[]
["３．請求書の提出について"]
[]
["・","請求書は原則現場単位でのご提出をお願い致します。"]
["・","請求書は「入力フォーム」シートにある「請求書印刷」のボタンをクリックして印刷して下さい。"]
[null,"「御社控え」と「提出用」の請求書が各１部づつ印刷されます。"]
[null,"※","「入力フォーム」シートの「請求書印刷」と「手書き用請求書印刷」のボタンを"]
[null,null,"利用する場合、Excelのマクロ設定を有効にしていただく必要があります。"]
["・","右端に「提出用」と記載のある請求書に必ず社印の押印をお願い致します。"]
[null,"社印の無い請求書は受け付けることができませんのでご注意下さい。"]
["・","請求書はご郵送等でご提出下さい。"]

{"sheet":"入力見本","index":1,"n_rows":84,"n_cols":59,"rows_kept":84,"cut":false,"hidden":false,"merged":[[77,38,77,49],[77,50,78,59],[78,38,78,49],[79,0,80,23],[79,24,80,36],[79,50,80,59],[73,50,74,59],[75,0,76,27],[75,28,76,36],[75,38,75,49],[75,50,76,59],[76,38,76,49],[73,16,74,27],[73,0,74,3],[73,4,74,4],[73,5,74,14],[73,15,74,15],[73,28,74,36],[73,38,74,49],[79,38,79,49],[80,38,80,49],[69,38,70,49],[69,50,70,59],[71,16,72,27],[71,0,72,3],[71,4,72,4],[71,5,72,14],[71,15,72,15],[71,28,72,36],[71,38,72,49],[71,50,72,59],[69,16,70,27],[69,0,70,3],[69,4,70,4],[69,5,70,14],[69,15,70,15],[69,28,70,36],[67,0,68,27],[67,28,68,36],[67,38,68,49],[67,50,68,59],[63,28,64,36],[65,0,66,2],[65,3,66,16],[65,17,66,18],[65,19,66,20],[65,21,66,23],[65,24,66,27],[65,28,66,36],[63,0,64,2],[63,3,64,16],[63,17,64,18],[63,19,64,20],[63,21,64,23],[63,24,64,27],[63,38,64,59],[65,38,65,49],[66,38,66,49],[61,0,62,2],[61,3,62,16],[61,17,62,18],[61,19,62,20],[61,21,62,23],[61,24,62,27],[61,28,62,36],[65,50,66,59],[61,38,61,49],[61,50,62,59],[62,38,62,49],[59,0,60,2],[59,3,60,16],[59,17,60,18],[59,19,60,20],[59,21,60,23],[59,24,60,27],[59,28,60,36],[59,50,60,59],[59,38,59,49],[60,38,60,49],[57,0,58,2],[57,3,58,16],[57,17,58,18],[57,19,58,20],[57,21,58,23],[57,24,58,27],[57,28,58,36],[57,38,57,49],[57,50,58,59],[58,38,58,49],[55,0,56,2],[55,3,56,16],[55,17,56,18],[55,19,56,20],[55,21,56,23],[55,24,56,27],[55,28,56,36],[55,50,56,59],[55,38,56,49],[51,28,52,36],[51,38,52,49],[51,50,52,59],[53,0,54,2],[53,3,54,16],[53,17,54,18],[53,19,54,20],[53,21,54,23],[53,24,54,27],[53,28,54,36],[51,0,52,2],[51,3,52,16],[51,17,52,18],[51,19,52,20],[51,21,52,23],[51,24,52,27],[53,50,54,59],[53,38,54,49],[49,0,50,2],[49,3,50,16],[49,17,50,18],[49,19,50,20],[49,21,50,23],[49,24,50,27],[49,28,50,36],[49,38,50,49],[49,50,50,59],[47,0,48,2],[47,3,48,16],[47,17,48,18],[47,19,48,20],[47,21,48,23],[47,24,48,27],[47,28,48,36],[47,38,48,49],[47,50,48,59],[45,0,46,2],[45,3,46,16],[45,17,46,18],[45,19,46,20],[45,21,46,23],[45,24,46,27],[45,28,46,36],[45,38,46,49],[45,50,46,59],[43,0,44,2],[43,3,44,16],[43,17,44,18],[43,19,44,20],[43,21,44,23],[43,24,44,27],[43,28,44,36],[43,38,44,49],[43,50,44,59],[37,0,38,23],[37,24,38,36],[37,38,38,49],[37,50,38,59],[41,0,42,2],[41,3,42,16],[41,17,42,18],[41,19,42,20],[41,21,42,23],[41,24,42,27],[41,28,42,36],[41,50,42,59],[39,0,40,9],[39,10,40,36],[39,38,40,59],[41,38,41,49],[42,38,42,49],[33,0,34,23],[33,24,34,36],[33,38,34,49],[33,50,34,59],[35,0,36,23],[35,24,36,36],[35,38,36,47],[35,48,36,49],[35,50,36,59],[18,32,19,59],[15,38,17,39],[15,40,17,41],[15,42,17,43],[15,44,17,45],[15,46,17,47],[15,48,17,49],[20,0,21,27],[20,28,22,33],[20,34,22,44],[20,45,22,47],[20,48,22,56],[20,57,22,59],[22,0,23,27],[23,28,25,33],[23,34,25,44],[23,45,25,46],[23,47,25,59],[24,0,25,12],[15,28,17,31],[15,32,17,33],[15,34,17,35],[15,36,17,37],[15,50,17,51],[15,52,17,53],[15,54,17,55],[15,56,17,57],[15,58,17,59],[8,5,10,25],[9,28,10,31],[9,32,10,59],[11,28,12,31],[11,32,12,57],[11,58,12,59],[13,28,14,31],[13,32,14,43],[13,44,14,47],[13,48,14,59],[11,5,12,25],[0,0,2,59],[4,44,4,47],[4,48,4,49],[4,50,4,52],[4,53,4,54],[4,55,4,57],[4,58,4,59],[82,0,82,4],[82,5,82,9],[82,10,82,14],[82,15,82,19],[82,20,82,24],[82,35,82,41],[82,47,82,48],[82,49,82,51],[82,52,82,54],[82,55,82,57],[82,58,82,59],[5,0,6,25],[5,28,6,42],[5,43,6,59],[7,28,8,31],[7,32,8,59],[8,0,10,4],[83,0,86,4],[83,5,86,9],[83,10,86,14],[83,15,86,19],[83,20,86,24],[83,35,86,46],[83,47,86,59],[26,20,30,21],[26,22,30,26],[27,34,29,59],[28,0,30,4],[28,5,30,19],[31,0,32,23],[31,24,32,36],[31,38,32,49],[31,50,32,59],[26,0,27,4],[26,5,27,11],[26,12,27,13],[26,14,27,16],[26,17,27,19],[26,28,26,33],[26,34,26,59],[27,28,29,33],[11,0,11,4],[12,0,12,4],[15,0,18,3],[15,4,18,12],[15,14,18,16],[15,17,16,19],[15,20,16,22],[15,23,16,25],[17,17,18,19],[17,20,18,22],[17,23,18,25]]}
["請　求　書"]
[]
[]
[]
[null,null,null,null,null,null,null,null,null,null,null,null,null,null,null,null,null,null,null,null,null,null,null,null,null,null,null,null,null,null,null,null,null,null,null,null,null,null,null,null,null,null,null,null,null,null,null,null,"年",null,null,null,null,"月",null,null,null,null,"日"]
["株式会社ザイソウハウス　　御中",null,null,null,null,null,null,null,null,null,null,null,null,null,null,null,null,null,null,null,null,null,null,null,null,null,null,null,"適格請求書発行事業者登録の有無",null,null,null,null,null,null,null,null,null,null,null,null,null,null,"有"]
[]
[null,null,null,null,null,null,null,null,null,null,null,null,null,null,null,null,null,null,null,null,null,null,null,null,null,null,null,null,"〒",null,null,null,"460-0024"]
["工事名"]
[null,null,null,null,null,null,null,null,null,null,null,null,null,null,null,null,null,null,null,null,null,null,null,null,null,null,null,null,"住所",null,null,null,"名古屋市中区正木"]
[]
["ザイソウハウス",null,null,null,null,null,null,null,null,null,null,null,null,null,null,null,null,null,null,null,null,null,null,null,null,null,null,null,"氏名",null,null,null,"株式会社〇〇〇〇",null,null,null,null,null,null,null,null,null,null,null,null,null,null,null,null,null,null,null,null,null,null,null,null,null,"㊞"]
["工事担当者名"]
[null,null,null,null,null,null,null,null,null,null,null,null,null,null,null,null,null,null,null,null,null,null,null,null,null,null,null,null,"TEL",null,null,null,"052-123-4567",null,null,null,null,null,null,null,null,null,null,null,"FAX",null,null,null,"052-123-4567"]
[]
["工　事\nコード",null,null,null,null,null,null,null,null,null,null,null,null,null,"区分",null,null,"外",null,null,"材",null,null,"経",null,null,null,null,"登録番号",null,null,null,"Ｔ",null,1,null,2,null,3,null,4,null,5,null,6,null,7,null,8,null,9,null,1,null,2,null,3,null,4]
[]
[null,null,null,null,null,null,null,null,null,null,null,null,null,null,null,null,null,"Ａ",null,null,"Ｂ",null,null,"Ｃ"]
[null,null,null,null,null,null,null,null,null,null,null,null,null,null,null,null,null,null,null,null,null,null,null,null,null,null,null,null,null,null,null,null,"※新規あるいは変更のある場合のみ記入して下さい。"]
[]
["※以下、太線内に請求内容を記入し各工事現場ごとに提出して下さい",null,null,null,null,null,null,null,null,null,null,null,null,null,null,null,null,null,null,null,null,null,null,null,null,null,null,null,"振込銀行",null,null,null,null,null,"三菱UFJ",null,null,null,null,null,null,null,null,null,null,"銀行",null,null,"〇〇",null,null,null,null,null,null,null,null,"支店"]
[]
["※別紙にて追加記入する場合は、タテ向Ａ４用紙を使用すること"]
[null,null,null,null,null,null,null,null,null,null,null,null,null,null,null,null,null,null,null,null,null,null,null,null,null,null,null,null,"口座",null,null,null,null,null,"普通",null,null,null,null,null,null,null,null,null,null,"№",null,"0123456789"]
["＜契約分（税込表記）＞"]
[]
["契約№",null,null,null,null,12345,null,null,null,null,null,null,"第",null,2,null,null,"回目",null,null,"管理",null,null,null,null,null,null,null,"フリガナ",null,null,null,null,null,"カブシキガイシャ〇〇〇〇"]
[null,null,null,null,null,null,null,null,null,null,null,null,null,null,null,null,null,null,null,null,null,null,null,null,null,null,null,null,"口座名義",null,null,null,null,null,"株式会社〇〇〇〇"]
["契約内容",null,null,null,null,"大工手間"]
[]
[]
["当月の契約分請求金額　①",null,null,null,null,null,null,null,null,null,null,null,null,null,null,null,null,null,null,null,null,null,null,null,550000,null,null,null,null,null,null,null,null,null,null,null,null,null,"契約分査定（ア）　（税込）"]
[]
["契約金額",null,null,null,null,null,null,null,null,null,null,null,null,null,null,null,null,null,null,null,null,null,null,null,2100000]
[]
["出来高金額",null,null,null,null,null,null,null,null,null,null,null,null,null,null,null,null,null,null,null,null,null,null,null,561000,null,null,null,null,null,null,null,null,null,null,null,null,null,null,null,null,null,null,null,null,null,null,null,"％"]
[]
["前月までの受領金額",null,null,null,null,null,null,null,null,null,null,null,null,null,null,null,null,null,null,null,null,null,null,null,11000]
[]
["＜契約外（税込）＞",null,null,null,null,null,null,null,null,null,"※必ず日付を記入して下さい。（○／○～○／○と項目欄に記入も可）"]
[]
["日付",null,null,"項目",null,null,null,null,null,null,null,null,null,null,null,null,null,"税率",null,"単位",null,"数量",null,null,"単価（税込）",null,null,null,"金額（税込）",null,null,null,null,null,null,null,null,null,"契約外査定　（税込）",null,null,null,null,null,null,null,null,null,null,null,"金額"]
[null,null,null,null,null,null,null,null,null,null,null,null,null,null,null,null,null,null,null,null,null,null,null,null,null,null,null,null,null,null,null,null,null,null,null,null,null,null,"(※は8％対象　　*は非課税対象)"]
["／",null,null,"大工手間（9/16～10/15）",null,null,null,null,null,null,null,null,null,null,null,null,null,0.1,null,"人工",null,20,null,null,20000,null,null,null,{"$f":"ROUNDDOWN(Y44*V44,0)","v":400000}]
[]
["2023-09-20",null,null,"追加作業（詳細別紙参照）",null,null,null,null,null,null,null,null,null,null,null,null,null,0.1,null,"式",null,1,null,null,5000,null,null,null,{"$f":"ROUNDDOWN(Y46*V46,0)","v":5000}]
[]
["／",null,null,"駐車場代（9/16～10/15）",null,null,null,null,null,null,null,null,null,null,null,null,null,0.1,null,"式",null,1,null,null,5890,null,null,null,{"$f":"ROUNDDOWN(Y48*V48,0)","v":5890}]
[]
["／",null,null,"交通費（高速代含む）（9/16～10/15）",null,null,null,null,null,null,null,null,null,null,null,null,null,0.1,null,"式",null,1,null,null,13560,null,null,null,{"$f":"ROUNDDOWN(Y50*V50,0)","v":13560}]
[]
["2023-09-30",null,null,"常用",null,null,null,null,null,null,null,null,null,null,null,null,null,0.1,null,"人工",null,1,null,null,20000,null,null,null,{"$f":"ROUNDDOWN(Y52*V52,0)","v":20000}]
[]
["2023-10-03",null,null,"金物購入",null,null,null,null,null,null,null,null,null,null,null,null,null,0.1,null,"式",null,1,null,null,33000,null,null,null,{"$f":"ROUNDDOWN(Y54*V54,0)","v":33000}]
[]
["2023-10-05",null,null,"食事代",null,null,null,null,null,null,null,null,null,null,null,null,null,0.08,null,"式",null,1,null,null,18533,null,null,null,{"$f":"ROUNDDOWN(Y56*V56,0)","v":18533},null,null,null,null,null,null,null,null,null,"契約外査定　計（イ）"]
[]
["2023-10-08",null,null,"印紙代（1,000円）",null,null,null,null,null,null,null,null,null,null,null,null,null,"非課税",null,"枚",null,5,null,null,1000,null,null,null,{"$f":"ROUNDDOWN(Y58*V58,0)","v":5000},null,null,null,null,null,null,null,null,null,"内消費税（10％）"]
[null,null,null,null,null,null,null,null,null,null,null,null,null,null,null,null,null,null,null,null,null,null,null,null,null,null,null,null,null,null,null,null,null,null,null,null,null,null,"対象額（　　　　　　　　　　　　　　　　　　　）"]
["／",null,null,null,null,null,null,null,null,null,null,null,null,null,null,null,null,null,null,null,null,null,null,null,null,null,null,null,{"$f":"ROUNDDOWN(Y60*V60,0)","v":0},null,null,null,null,null,null,null,null,null,"内消費税（ 8％）　※"]
[null,null,null,null,null,null,null,null,null,null,null,null,null,null,null,null,null,null,null,null,null,null,null,null,null,null,null,null,null,null,null,null,null,null,null,null,null,null,"対象額（　　　　　　　　　　　　　　　　　　　）"]
["／",null,null,null,null,null,null,null,null,null,null,null,null,null,null,null,null,null,null,null,null,null,null,null,null,null,null,null,{"$f":"ROUNDDOWN(Y62*V62,0)","v":0},null,null,null,null,null,null,null,null,null,"内非課税　*"]
[null,null,null,null,null,null,null,null,null,null,null,null,null,null,null,null,null,null,null,null,null,null,null,null,null,null,null,null,null,null,null,null,null,null,null,null,null,null,"対象額（　　　　　　　　　　　　　　　　　　　）"]
["／",null,null,null,null,null,null,null,null,null,null,null,null,null,null,null,null,null,null,null,null,null,null,null,null,null,null,null,{"$f":"ROUNDDOWN(Y64*V64,0)","v":0}]
[]
["／",null,null,null,null,null,null,null,null,null,null,null,null,null,null,null,null,null,null,null,null,null,null,null,null,null,null,null,{"$f":"ROUNDDOWN(Y66*V66,0)","v":0},null,null,null,null,null,null,null,null,null,"立替項目　（税込）",null,null,null,null,null,null,null,null,null,null,null,"金額"]
[null,null,null,null,null,null,null,null,null,null,null,null,null,null,null,null,null,null,null,null,null,null,null,null,null,null,null,null,null,null,null,null,null,null,null,null,null,null,"(※は8％対象　　*は非課税対象)"]
["小計",null,null,null,null,null,null,null,null,null,null,null,null,null,null,null,null,null,null,null,null,null,null,null,null,null,null,null,{"$f":"SUM(AC44:AK67)","v":500983}]
[]
["対象額",null,null,null,"（",{"$f":"SUMIF(R44:S67,10%,AC44:AK67)","v":477450},null,null,null,null,null,null,null,null,null,"）","内消費税額（10％）",null,null,null,null,null,null,null,null,null,null,null,{"$f":"ROUNDDOWN((F70*0.1)/1.1,0)","v":43404}]
[]
["対象額",null,null,null,"（",{"$f":"SUMIF(R44:S67,8%,AC44:AK67)","v":18533},null,null,null,null,null,null,null,null,null,"）","内消費税額（ 8％）",null,null,null,null,null,null,null,null,null,null,null,{"$f":"ROUNDDOWN((F72*0.08)/1.08,0)","v":1372}]
[]
["対象額",null,null,null,"（",{"$f":"SUMIF(R44:S67,\"非課税\",AC44:AK67)","v":5000},null,null,null,null,null,null,null,null,null,"）","内非課税",null,null,null,null,null,null,null,null,null,null,null,null,null,null,null,null,null,null,null,null,null,"立替相殺　計（ウ）"]
[]
[null,null,null,null,null,null,null,null,null,null,null,null,null,null,null,null,null,null,null,null,null,null,null,null,null,null,null,null,null,null,null,null,null,null,null,null,null,null,"内消費税（10％）"]
[null,null,null,null,null,null,null,null,null,null,null,null,null,null,null,null,null,null,null,null,null,null,null,null,null,null,null,null,null,null,null,null,null,null,null,null,null,null,"対象額（　　　　　　　　　　　　　　　　　　　）"]
[null,null,null,null,null,null,null,null,null,null,null,null,null,null,null,null,null,null,null,null,null,null,null,null,null,null,null,null,null,null,null,null,null,null,null,null,null,null,"内消費税（ 8％）　※"]
[null,null,null,null,null,null,null,null,null,null,null,null,null,null,null,null,null,null,null,null,null,null,null,null,null,null,null,null,null,null,null,null,null,null,null,null,null,null,"対象額（　　　　　　　　　　　　　　　　　　　）"]
["当月請求金額　合計①＋②",null,null,null,null,null,null,null,null,null,null,null,null,null,null,null,null,null,null,null,null,null,null,null,{"$f":"AC68+Y32","v":1050983},null,null,null,null,null,null,null,null,null,null,null,null,null,"内非課税　*"]
[null,null,null,null,null,null,null,null,null,null,null,null,null,null,null,null,null,null,null,null,null,null,null,null,null,null,null,null,null,null,null,null,null,null,null,null,null,null,"対象額（　　　　　　　　　　　　　　　　　　　）"]
[]
["担当",null,null,null,null,"課長",null,null,null,null,"部長",null,null,null,null,"専務",null,null,null,null,"管理",null,null,null,null,null,null,null,null,null,null,null,null,null,null,"支払日",null,null,null,null,null,null,null,null,null,null,null,"年",null,null,null,null,"月",null,null,null,null,null,"日"]
[null,null,null,null,null,null,null,null,null,null,null,null,null,null,null,null,null,null,null,null,null,null,null,null,null,null,null,null,null,null,null,null,null,null,null,"支払金額（税込）\n合計（ア）+（イ）-（ウ）"]

{"sheet":"入力フォーム","index":2,"n_rows":84,"n_cols":65,"rows_kept":84,"cut":false,"hidden":false,"merged":[[15,40,17,41],[18,28,19,59],[20,0,21,27],[20,28,22,33],[20,34,22,44],[20,45,22,47],[23,34,25,44],[23,45,25,46],[23,47,25,59],[24,0,25,12],[20,48,22,56],[20,57,22,59],[21,62,22,75],[7,28,8,31],[7,32,8,59],[8,0,10,4],[8,5,10,25],[9,28,10,31],[9,32,10,59],[11,28,12,31],[11,32,12,57],[19,62,20,75],[15,42,17,43],[15,44,17,45],[15,46,17,47],[15,48,17,49],[13,28,14,31],[13,32,14,43],[13,44,14,47],[11,0,11,4],[22,0,23,27],[23,28,25,33],[12,0,12,4],[13,48,14,59],[15,28,17,31],[15,32,17,33],[0,0,2,59],[4,44,4,47],[4,48,4,49],[4,50,4,52],[4,53,4,54],[4,55,4,57],[4,58,4,59],[5,0,6,25],[5,28,6,42],[5,43,6,59],[31,0,32,23],[31,24,32,36],[31,38,32,49],[31,50,32,59],[26,20,30,21],[26,22,30,26],[33,0,34,23],[33,24,34,36],[33,38,34,49],[33,50,34,59],[26,0,27,4],[26,5,27,11],[26,12,27,13],[26,14,27,16],[26,17,27,19],[26,28,26,33],[26,34,26,59],[27,28,29,33],[27,34,29,59],[28,0,30,4],[28,5,30,19],[35,24,36,36],[35,38,36,47],[35,48,36,49],[35,50,36,59],[37,0,38,23],[37,24,38,36],[37,38,38,49],[37,50,38,59],[41,50,42,59],[41,0,42,2],[41,3,42,16],[41,17,42,18],[41,19,42,20],[41,21,42,23],[41,24,42,27],[41,28,42,36],[39,0,40,9],[39,10,40,36],[35,0,36,23],[39,38,40,59],[42,38,42,49],[41,38,41,49],[43,0,44,2],[43,3,44,16],[43,17,44,18],[43,19,44,20],[43,21,44,23],[43,24,44,27],[43,28,44,36],[43,38,44,49],[43,50,44,59],[45,0,46,2],[45,3,46,16],[45,17,46,18],[45,19,46,20],[45,21,46,23],[45,24,46,27],[45,28,46,36],[45,38,46,49],[45,50,46,59],[47,0,48,2],[47,3,48,16],[47,17,48,18],[47,19,48,20],[47,21,48,23],[47,24,48,27],[47,28,48,36],[47,38,48,49],[47,50,48,59],[49,0,50,2],[49,3,50,16],[49,17,50,18],[49,19,50,20],[49,21,50,23],[49,24,50,27],[49,28,50,36],[49,38,50,49],[49,50,50,59],[55,50,56,59],[53,0,54,2],[53,3,54,16],[53,17,54,18],[53,19,54,20],[53,21,54,23],[53,24,54,27],[53,28,54,36],[51,0,52,2],[51,3,52,16],[51,17,52,18],[51,19,52,20],[51,21,52,23],[51,24,52,27],[51,38,52,49],[51,50,52,59],[53,38,54,49],[53,50,54,59],[55,0,56,2],[55,3,56,16],[55,17,56,18],[55,19,56,20],[55,21,56,23],[55,24,56,27],[51,28,52,36],[55,38,56,49],[57,0,58,2],[57,3,58,16],[57,17,58,18],[57,19,58,20],[57,21,58,23],[57,24,58,27],[57,28,58,36],[57,38,57,49],[58,38,58,49],[61,38,61,49],[61,50,62,59],[62,38,62,49],[59,0,60,2],[59,3,60,16],[59,17,60,18],[59,19,60,20],[59,21,60,23],[59,24,60,27],[59,28,60,36],[61,0,62,2],[61,3,62,16],[61,17,62,18],[61,19,62,20],[61,21,62,23],[61,24,62,27],[61,28,62,36],[59,38,59,49],[59,50,60,59],[60,38,60,49],[73,28,74,36],[73,38,74,49],[73,50,74,59],[67,38,68,49],[67,50,68,59],[71,38,72,49],[71,50,72,59],[71,16,72,27],[71,0,72,3],[71,4,72,4],[71,5,72,14],[71,15,72,15],[71,28,72,36],[69,0,70,27],[69,28,70,36],[69,38,70,49],[69,50,70,59],[67,0,68,2],[67,3,68,16],[67,17,68,18],[67,19,68,20],[67,21,68,23],[67,24,68,27],[67,28,68,36],[83,0,86,4],[83,5,86,9],[83,10,86,14],[83,15,86,19],[83,20,86,24],[83,35,86,46],[83,47,86,59],[82,0,82,4],[82,5,82,9],[82,10,82,14],[82,15,82,19],[82,20,82,24],[82,35,82,41],[82,47,82,48],[82,49,82,51],[79,38,79,49],[79,50,80,59],[80,38,80,49],[79,0,80,23],[79,24,80,36],[82,52,82,54],[82,55,82,57],[82,58,82,59],[75,38,75,49],[75,50,76,59],[76,38,76,49],[77,38,77,49],[77,50,78,59],[78,38,78,49],[75,16,76,27],[75,0,76,3],[75,4,76,4],[75,5,76,14],[75,15,76,15],[75,28,76,36],[73,16,74,27],[15,0,18,3],[15,4,18,12],[15,14,18,16],[15,17,16,19],[15,20,16,22],[15,23,16,25],[17,17,18,19],[17,20,18,22],[17,23,18,25],[65,17,66,18],[65,19,66,20],[65,21,66,23],[65,24,66,27],[73,0,74,3],[73,4,74,4],[73,5,74,14],[73,15,74,15],[63,0,64,2],[63,3,64,16],[63,17,64,18],[63,19,64,20],[65,0,66,2],[65,3,66,16],[0,62,2,97],[65,28,66,36],[3,62,3,63],[5,62,6,75],[7,62,8,75],[11,5,12,25],[11,58,12,59],[15,34,17,35],[15,36,17,37],[15,50,17,51],[15,52,17,53],[15,54,17,55],[15,56,17,57],[15,58,17,59],[15,38,17,39],[63,21,64,23],[63,24,64,27],[66,38,66,49],[65,38,65,49],[55,28,56,36],[63,38,64,59],[63,28,64,36],[65,50,66,59],[57,50,58,59]]}
["請　求　書",null,null,null,null,null,null,null,null,null,null,null,null,null,null,null,null,null,null,null,null,null,null,null,null,null,null,null,null,null,null,null,null,null,null,null,null,null,null,null,null,null,null,null,null,null,null,null,null,null,null,null,null,null,null,null,null,null,null,null,null,null,"以下のボタンはマクロの設定を有効にしてご利用下さい。"]
[]
[]
[null,null,null,null,null,null,null,null,null,null,null,null,null,null,null,null,null,null,null,null,null,null,null,null,null,null,null,null,null,null,null,null,null,null,null,null,null,null,null,null,null,null,null,null,null,null,null,null,null,null,null,null,null,null,null,null,null,null,null,null,null,null,null,null,"の箇所に入力をお願い致します。"]
[null,null,null,null,null,null,null,null,null,null,null,null,null,null,null,null,null,null,null,null,null,null,null,null,null,null,null,null,null,null,null,null,null,null,null,null,null,null,null,null,null,null,null,null,null,null,null,null,"年",null,null,null,null,"月",null,null,null,null,"日"]
["株式会社ザイソウハウス　　御中",null,null,null,null,null,null,null,null,null,null,null,null,null,null,null,null,null,null,null,null,null,null,null,null,null,null,null,"適格請求書発行事業者登録の有無",null,null,null,null,null,null,null,null,null,null,null,null,null,null,null,null,null,null,null,null,null,null,null,null,null,null,null,null,null,null,null,null,null,"こちらをクリックして請求書を"]
[]
[null,null,null,null,null,null,null,null,null,null,null,null,null,null,null,null,null,null,null,null,null,null,null,null,null,null,null,null,"〒",null,null,null,null,null,null,null,null,null,null,null,null,null,null,null,null,null,null,null,null,null,null,null,null,null,null,null,null,null,null,null,null,null,"印刷して下さい。"]
["工事名"]
[null,null,null,null,null,null,null,null,null,null,null,null,null,null,null,null,null,null,null,null,null,null,null,null,null,null,null,null,"住所"]
[]
["ザイソウハウス",null,null,null,null,null,null,null,null,null,null,null,null,null,null,null,null,null,null,null,null,null,null,null,null,null,null,null,"氏名",null,null,null,null,null,null,null,null,null,null,null,null,null,null,null,null,null,null,null,null,null,null,null,null,null,null,null,null,null,"㊞"]
["工事担当者名"]
[null,null,null,null,null,null,null,null,null,null,null,null,null,null,null,null,null,null,null,null,null,null,null,null,null,null,null,null,"TEL",null,null,null,null,null,null,null,null,null,null,null,null,null,null,null,"FAX"]
[]
["工　事\nコード",null,null,null,null,null,null,null,null,null,null,null,null,null,"区分",null,null,"外",null,null,"材",null,null,"経",null,null,null,null,"登録番号",null,null,null,"Ｔ"]
[]
[null,null,null,null,null,null,null,null,null,null,null,null,null,null,null,null,null,"Ａ",null,null,"Ｂ",null,null,"Ｃ"]
[null,null,null,null,null,null,null,null,null,null,null,null,null,null,null,null,null,null,null,null,null,null,null,null,null,null,null,null,"※新規あるいは変更のある場合のみ記入して下さい。"]
[null,null,null,null,null,null,null,null,null,null,null,null,null,null,null,null,null,null,null,null,null,null,null,null,null,null,null,null,null,null,null,null,null,null,null,null,null,null,null,null,null,null,null,null,null,null,null,null,null,null,null,null,null,null,null,null,null,null,null,null,null,null,"手書きの方はこちらから請求書を"]
["※以下、太線内に請求内容を記入し各工事現場ごとに提出して下さい。",null,null,null,null,null,null,null,null,null,null,null,null,null,null,null,null,null,null,null,null,null,null,null,null,null,null,null,"振込銀行",null,null,null,null,null,null,null,null,null,null,null,null,null,null,null,null,"銀行",null,null,null,null,null,null,null,null,null,null,null,"支店"]
[null,null,null,null,null,null,null,null,null,null,null,null,null,null,null,null,null,null,null,null,null,null,null,null,null,null,null,null,null,null,null,null,null,null,null,null,null,null,null,null,null,null,null,null,null,null,null,null,null,null,null,null,null,null,null,null,null,null,null,null,null,null,"印刷してご利用下さい。"]
["※別紙にて追加記入する場合は、タテ向Ａ４用紙を使用すること。"]
[null,null,null,null,null,null,null,null,null,null,null,null,null,null,null,null,null,null,null,null,null,null,null,null,null,null,null,null,"口座",null,null,null,null,null,"　",null,null,null,null,null,null,null,null,null,null,"№"]
["＜契約分（税込）＞"]
[]
["契約№",null,null,null,null,null,null,null,null,null,null,null,"第",null,null,null,null,"回目",null,null,"管理",null,null,null,null,null,null,null,"フリガナ"]
[null,null,null,null,null,null,null,null,null,null,null,null,null,null,null,null,null,null,null,null,null,null,null,null,null,null,null,null,"口座名義"]
["契約内容"]
[]
[]
["当月の契約分請求金額①",null,null,null,null,null,null,null,null,null,null,null,null,null,null,null,null,null,null,null,null,null,null,null,null,null,null,null,null,null,null,null,null,null,null,null,null,null,"契約分査定（ア）　（税込）"]
[]
["契約金額"]
[]
["出来高金額",null,null,null,null,null,null,null,null,null,null,null,null,null,null,null,null,null,null,null,null,null,null,null,null,null,null,null,null,null,null,null,null,null,null,null,null,null,null,null,null,null,null,null,null,null,null,null,"％"]
[]
["前月までの受領金額"]
[]
["＜契約外（税込）＞",null,null,null,null,null,null,null,null,null,"※必ず日付を記入して下さい。（○／○～○／○と項目欄に記入も可）"]
[]
["日付",null,null,"項目",null,null,null,null,null,null,null,null,null,null,null,null,null,"税率",null,"単位",null,"数量",null,null,"単価（税込）",null,null,null,"金額（税込）",null,null,null,null,null,null,null,null,null,"契約外査定　（税込）",null,null,null,null,null,null,null,null,null,null,null,"金額"]
[null,null,null,null,null,null,null,null,null,null,null,null,null,null,null,null,null,null,null,null,null,null,null,null,null,null,null,null,null,null,null,null,null,null,null,null,null,null,"(※は8％対象　　*は非課税対象)"]
["／",null,null,null,null,null,null,null,null,null,null,null,null,null,null,null,null,null,null,null,null,null,null,null,null,null,null,null,{"$f":"ROUNDDOWN(Y44*V44,0)","v":0}]
[]
["／",null,null,null,null,null,null,null,null,null,null,null,null,null,null,null,null,null,null,null,null,null,null,null,null,null,null,null,{"$f":"ROUNDDOWN(Y46*V46,0)","v":0}]
[]
["／",null,null,null,null,null,null,null,null,null,null,null,null,null,null,null,null,null,null,null,null,null,null,null,null,null,null,null,{"$f":"ROUNDDOWN(Y48*V48,0)","v":0}]
[]
["／",null,null,null,null,null,null,null,null,null,null,null,null,null,null,null,null,null,null,null,null,null,null,null,null,null,null,null,{"$f":"ROUNDDOWN(Y50*V50,0)","v":0}]
[]
["／",null,null,null,null,null,null,null,null,null,null,null,null,null,null,null,null,null,null,null,null,null,null,null,null,null,null,null,{"$f":"ROUNDDOWN(Y52*V52,0)","v":0}]
[]
["／",null,null,null,null,null,null,null,null,null,null,null,null,null,null,null,null,null,null,null,null,null,null,null,null,null,null,null,{"$f":"ROUNDDOWN(Y54*V54,0)","v":0}]
[]
["／",null,null,null,null,null,null,null,null,null,null,null,null,null,null,null,null,null,null,null,null,null,null,null,null,null,null,null,{"$f":"ROUNDDOWN(Y56*V56,0)","v":0},null,null,null,null,null,null,null,null,null,"契約外査定　計（イ）"]
[]
["／",null,null,null,null,null,null,null,null,null,null,null,null,null,null,null,null,null,null,null,null,null,null,null,null,null,null,null,{"$f":"ROUNDDOWN(Y58*V58,0)","v":0},null,null,null,null,null,null,null,null,null,"内消費税（10％）"]
[null,null,null,null,null,null,null,null,null,null,null,null,null,null,null,null,null,null,null,null,null,null,null,null,null,null,null,null,null,null,null,null,null,null,null,null,null,null,"対象額（　　　　　　　　　　　　　　　　　　　）"]
["／",null,null,null,null,null,null,null,null,null,null,null,null,null,null,null,null,null,null,null,null,null,null,null,null,null,null,null,{"$f":"ROUNDDOWN(Y60*V60,0)","v":0},null,null,null,null,null,null,null,null,null,"内消費税（ 8％）　※"]
[null,null,null,null,null,null,null,null,null,null,null,null,null,null,null,null,null,null,null,null,null,null,null,null,null,null,null,null,null,null,null,null,null,null,null,null,null,null,"対象額（　　　　　　　　　　　　　　　　　　　）"]
["／",null,null,null,null,null,null,null,null,null,null,null,null,null,null,null,null,null,null,null,null,null,null,null,null,null,null,null,{"$f":"ROUNDDOWN(Y62*V62,0)","v":0},null,null,null,null,null,null,null,null,null,"内非課税　*"]
[null,null,null,null,null,null,null,null,null,null,null,null,null,null,null,null,null,null,null,null,null,null,null,null,null,null,null,null,null,null,null,null,null,null,null,null,null,null,"対象額（　　　　　　　　　　　　　　　　　　　）"]
["／",null,null,null,null,null,null,null,null,null,null,null,null,null,null,null,null,null,null,null,null,null,null,null,null,null,null,null,{"$f":"ROUNDDOWN(Y64*V64,0)","v":0}]
[]
["／",null,null,null,null,null,null,null,null,null,null,null,null,null,null,null,null,null,null,null,null,null,null,null,null,null,null,null,{"$f":"ROUNDDOWN(Y66*V66,0)","v":0},null,null,null,null,null,null,null,null,null,"立替項目　（税込）",null,null,null,null,null,null,null,null,null,null,null,"金額"]
[null,null,null,null,null,null,null,null,null,null,null,null,null,null,null,null,null,null,null,null,null,null,null,null,null,null,null,null,null,null,null,null,null,null,null,null,null,null,"(※は8％対象　　*は非課税対象)"]
["／",null,null,null,null,null,null,null,null,null,null,null,null,null,null,null,null,null,null,null,null,null,null,null,null,null,null,null,{"$f":"ROUNDDOWN(Y68*V68,0)","v":0}]
[]
["契約外請求額　計 ②",null,null,null,null,null,null,null,null,null,null,null,null,null,null,null,null,null,null,null,null,null,null,null,null,null,null,null,{"$f":"SUM(AC44:AK69)","v":0}]
[]
["対象額",null,null,null,"（",{"$f":"SUMIF(R44:S69,10%,AC44:AK69)","v":0},null,null,null,null,null,null,null,null,null,"）","内消費税額（10％）",null,null,null,null,null,null,null,null,null,null,null,{"$f":"ROUNDDOWN((F72*0.1)/1.1,0)","v":0}]
[]
["対象額",null,null,null,"（",{"$f":"SUMIF(R44:S69,8%,AC44:AK69)","v":0},null,null,null,null,null,null,null,null,null,"）","内消費税額（ 8％）",null,null,null,null,null,null,null,null,null,null,null,{"$f":"ROUNDDOWN((F74*0.08)/1.08,0)","v":0},null,null,null,null,null,null,null,null,null,"立替相殺　計（ウ）"]
[]
["対象額",null,null,null,"（",{"$f":"SUMIF(R44:S69,\"非課税\",AC44:AK69)","v":0},null,null,null,null,null,null,null,null,null,"）","内非課税",null,null,null,null,null,null,null,null,null,null,null,null,null,null,null,null,null,null,null,null,null,"内消費税（10％）"]
[null,null,null,null,null,null,null,null,null,null,null,null,null,null,null,null,null,null,null,null,null,null,null,null,null,null,null,null,null,null,null,null,null,null,null,null,null,null,"対象額（　　　　　　　　　　　　　　　　　　　）"]
[null,null,null,null,null,null,null,null,null,null,null,null,null,null,null,null,null,null,null,null,null,null,null,null,null,null,null,null,null,null,null,null,null,null,null,null,null,null,"内消費税（ 8％）　※"]
[null,null,null,null,null,null,null,null,null,null,null,null,null,null,null,null,null,null,null,null,null,null,null,null,null,null,null,null,null,null,null,null,null,null,null,null,null,null,"対象額（　　　　　　　　　　　　　　　　　　　）"]
["当月請求金額　合計①＋②",null,null,null,null,null,null,null,null,null,null,null,null,null,null,null,null,null,null,null,null,null,null,null,{"$f":"AC70+Y32","v":0},null,null,null,null,null,null,null,null,null,null,null,null,null,"内非課税　*"]
[null,null,null,null,null,null,null,null,null,null,null,null,null,null,null,null,null,null,null,null,null,null,null,null,null,null,null,null,null,null,null,null,null,null,null,null,null,null,"対象額（　　　　　　　　　　　　　　　　　　　）"]
[]
["担当",null,null,null,null,"課長",null,null,null,null,"部長",null,null,null,null,"専務",null,null,null,null,"管理",null,null,null,null,null,null,null,null,null,null,null,null,null,null,"支払日",null,null,null,null,null,null,null,null,null,null,null,"年",null,null,null,null,"月",null,null,null,null,null,"日"]
[null,null,null,null,null,null,null,null,null,null,null,null,null,null,null,null,null,null,null,null,null,null,null,null,null,null,null,null,null,null,null,null,null,null,null,"支払金額（税込）\n合計（ア）+（イ）-（ウ）"]

{"sheet":"御社控え","index":3,"n_rows":81,"n_cols":59,"rows_kept":81,"cut":false,"hidden":false,"merged":[[37,50,38,59],[35,50,36,59],[33,50,34,59],[18,28,19,59],[5,0,6,25],[8,0,10,4],[8,5,10,25],[31,50,32,59],[27,34,29,59],[28,0,30,4],[28,5,30,19],[23,47,25,59],[24,0,25,12],[26,28,26,33],[26,34,26,59],[26,0,27,4],[26,5,27,11],[26,12,27,13],[26,14,27,16],[26,17,27,19],[31,38,32,49],[22,0,23,27],[23,28,25,33],[23,34,25,44],[4,44,4,47],[4,48,4,49],[4,50,4,52],[4,53,4,54],[4,55,4,57],[4,58,4,59],[7,32,8,59],[7,28,8,31],[9,32,10,59],[9,28,10,31],[5,28,6,42],[5,43,6,59],[37,38,38,49],[35,48,36,49],[35,38,36,47],[33,38,34,49],[37,0,38,23],[47,0,48,2],[47,3,48,16],[47,17,48,18],[47,21,48,23],[47,24,48,27],[39,0,40,9],[39,10,40,36],[39,38,40,59],[43,38,44,49],[43,50,44,59],[45,0,46,2],[45,3,46,16],[45,17,46,18],[45,19,46,20],[45,21,46,23],[45,24,46,27],[41,50,42,59],[43,0,44,2],[43,3,44,16],[45,50,46,59],[49,28,50,36],[51,28,52,36],[47,28,48,36],[45,28,46,36],[51,38,52,49],[51,50,52,59],[47,38,48,49],[47,50,48,59],[63,38,64,59],[61,21,62,23],[61,24,62,27],[55,28,56,36],[49,38,50,49],[49,50,50,59],[49,0,50,2],[49,3,50,16],[49,17,50,18],[49,21,50,23],[49,24,50,27],[51,19,52,20],[51,0,52,2],[51,3,52,16],[51,17,52,18],[51,21,52,23],[51,24,52,27],[59,3,60,16],[59,17,60,18],[59,21,60,23],[55,0,56,2],[55,3,56,16],[55,17,56,18],[55,21,56,23],[53,50,54,59],[53,0,54,2],[53,3,54,16],[53,17,54,18],[53,21,54,23],[53,24,54,27],[53,19,54,20],[53,38,54,49],[55,38,56,49],[59,38,59,49],[60,38,60,49],[53,28,54,36],[79,0,80,23],[77,38,77,49],[77,50,78,59],[78,38,78,49],[73,50,74,59],[71,38,72,49],[71,50,72,59],[75,15,76,15],[73,15,74,15],[79,24,80,36],[75,38,75,49],[75,50,76,59],[76,38,76,49],[79,50,80,59],[75,28,76,36],[73,28,74,36],[73,38,74,49],[79,38,79,49],[80,38,80,49],[73,0,74,3],[73,4,74,4],[71,4,72,4],[75,0,76,3],[75,4,76,4],[75,16,76,27],[73,16,74,27],[71,0,72,3],[71,16,72,27],[75,5,76,14],[73,5,74,14],[71,5,72,14],[65,17,66,18],[65,19,66,20],[67,19,68,20],[65,0,66,2],[67,28,68,36],[69,50,70,59],[69,38,70,49],[67,38,68,49],[67,50,68,59],[65,50,66,59],[71,28,72,36],[69,28,70,36],[65,21,66,23],[65,24,66,27],[65,28,66,36],[65,38,65,49],[66,38,66,49],[69,0,70,27],[67,0,68,2],[67,3,68,16],[67,17,68,18],[67,21,68,23],[67,24,68,27],[71,15,72,15],[65,3,66,16],[35,0,36,23],[33,0,34,23],[31,0,32,23],[37,24,38,36],[35,24,36,36],[33,24,34,36],[31,24,32,36],[43,28,44,36],[41,19,42,20],[41,3,42,16],[41,17,42,18],[41,21,42,23],[41,24,42,27],[41,28,42,36],[43,17,44,18],[43,21,44,23],[43,24,44,27],[41,0,42,2],[61,28,62,36],[59,24,60,27],[57,50,58,59],[59,50,60,59],[55,50,56,59],[57,38,57,49],[58,38,58,49],[57,21,58,23],[57,24,58,27],[57,28,58,36],[59,28,60,36],[61,38,61,49],[61,50,62,59],[62,38,62,49],[55,24,56,27],[0,0,2,59],[27,28,29,33],[13,28,14,31],[13,44,14,47],[13,48,14,59],[15,50,17,51],[15,52,17,53],[15,54,17,55],[15,56,17,57],[15,58,17,59],[20,28,22,33],[20,34,22,44],[20,45,22,47],[20,48,22,56],[20,57,22,59],[20,0,21,27],[23,45,25,46],[15,48,17,49],[15,36,17,37],[15,4,18,12],[15,14,18,16],[15,17,16,19],[15,20,16,22],[11,5,12,25],[15,0,18,3],[15,23,16,25],[17,17,18,19],[17,20,18,22],[17,23,18,25],[11,58,12,59],[15,38,17,39],[15,40,17,41],[15,42,17,43],[15,32,17,33],[15,44,17,45],[13,32,14,43],[15,34,17,35],[15,46,17,47],[15,28,17,31],[11,28,12,31],[11,32,12,57],[11,0,11,4],[12,0,12,4],[63,0,64,2],[63,3,64,16],[63,17,64,18],[63,19,64,20],[63,21,64,23],[63,24,64,27],[63,28,64,36],[41,38,41,49],[42,38,42,49],[45,38,46,49],[61,19,62,20],[43,19,44,20],[47,19,48,20],[49,19,50,20],[61,0,62,2],[61,3,62,16],[61,17,62,18],[55,19,56,20],[57,0,58,2],[57,3,58,16],[57,17,58,18],[57,19,58,20],[59,19,60,20],[59,0,60,2]]}
["請　求　書"]
[]
[]
[]
[null,null,null,null,null,null,null,null,null,null,null,null,null,null,null,null,null,null,null,null,null,null,null,null,null,null,null,null,null,null,null,null,null,null,null,null,null,null,null,null,null,null,null,null,{"$f":"入力フォーム!AS5","v":0},null,null,null,"年",null,{"$f":"入力フォーム!AY5","v":0},null,null,"月",null,{"$f":"入力フォーム!BD5","v":0},null,null,"日"]
["株式会社ザイソウハウス　　御中",null,null,null,null,null,null,null,null,null,null,null,null,null,null,null,null,null,null,null,null,null,null,null,null,null,null,null,"適格請求書発行事業者登録の有無",null,null,null,null,null,null,null,null,null,null,null,null,null,null,{"$f":"入力フォーム!AR6","v":0}]
[]
[null,null,null,null,null,null,null,null,null,null,null,null,null,null,null,null,null,null,null,null,null,null,null,null,null,null,null,null,"〒",null,null,null,{"$f":"入力フォーム!AG8","v":0}]
["工事名",null,null,null,null,{"$f":"入力フォーム!F9","v":0}]
[null,null,null,null,null,null,null,null,null,null,null,null,null,null,null,null,null,null,null,null,null,null,null,null,null,null,null,null,"住所",null,null,null,{"$f":"入力フォーム!AG10","v":0}]
[]
["ザイソウハウス",null,null,null,null,{"$f":"入力フォーム!F12","v":0},null,null,null,null,null,null,null,null,null,null,null,null,null,null,null,null,null,null,null,null,null,null,"氏名",null,null,null,{"$f":"入力フォーム!AG12","v":0},null,null,null,null,null,null,null,null,null,null,null,null,null,null,null,null,null,null,null,null,null,null,null,null,null,"㊞"]
["工事担当者名"]
[null,null,null,null,null,null,null,null,null,null,null,null,null,null,null,null,null,null,null,null,null,null,null,null,null,null,null,null,"TEL",null,null,null,{"$f":"入力フォーム!AG14","v":0},null,null,null,null,null,null,null,null,null,null,null,"FAX",null,null,null,{"$f":"入力フォーム!AW14","v":0}]
[]
["工　事\nコード",null,null,null,null,null,null,null,null,null,null,null,null,null,"区分",null,null,"外",null,null,"材",null,null,"経",null,null,null,null,"登録番号",null,null,null,"Ｔ",null,{"$f":"入力フォーム!AI16","v":0},null,{"$f":"入力フォーム!AK16","v":0},null,{"$f":"入力フォーム!AM16","v":0},null,{"$f":"入力フォーム!AO16","v":0},null,{"$f":"入力フォーム!AQ16","v":0},null,{"$f":"入力フォーム!AS16","v":0},null,{"$f":"入力フォーム!AU16","v":0},null,{"$f":"入力フォーム!AW16","v":0},null,{"$f":"入力フォーム!AY16","v":0},null,{"$f":"入力フォーム!BA16","v":0},null,{"$f":"入力フォーム!BC16","v":0},null,{"$f":"入力フォーム!BE16","v":0},null,{"$f":"入力フォーム!BG16","v":0}]
[]
[null,null,null,null,null,null,null,null,null,null,null,null,null,null,null,null,null,"Ａ",null,null,"Ｂ",null,null,"Ｃ"]
[null,null,null,null,null,null,null,null,null,null,null,null,null,null,null,null,null,null,null,null,null,null,null,null,null,null,null,null,"※新規あるいは変更のある場合のみ記入して下さい。"]
[]
["※以下、太線内に請求内容を記入し各工事現場ごとに提出して下さい。",null,null,null,null,null,null,null,null,null,null,null,null,null,null,null,null,null,null,null,null,null,null,null,null,null,null,null,"振込銀行",null,null,null,null,null,{"$f":"入力フォーム!AI21","v":0},null,null,null,null,null,null,null,null,null,null,{"$f":"入力フォーム!AT21","v":"銀行"},null,null,{"$f":"入力フォーム!AW21","v":0},null,null,null,null,null,null,null,null,{"$f":"入力フォーム!BF21","v":"支店"}]
[]
["※別紙にて追加記入する場合は、タテ向Ａ４用紙を使用すること。"]
[null,null,null,null,null,null,null,null,null,null,null,null,null,null,null,null,null,null,null,null,null,null,null,null,null,null,null,null,"口座",null,null,null,null,null,{"$f":"入力フォーム!AI24","v":"　"},null,null,null,null,null,null,null,null,null,null,"№",null,{"$f":"入力フォーム!AV24","v":0}]
["＜契約分（税込）＞"]
[]
["契約№",null,null,null,null,{"$f":"入力フォーム!F27","v":0},null,null,null,null,null,null,"第",null,{"$f":"入力フォーム!O27","v":0},null,null,"回目",null,null,null,null,null,null,null,null,null,null,"フリガナ",null,null,null,null,null,{"$f":"入力フォーム!AI27","v":0}]
[null,null,null,null,null,null,null,null,null,null,null,null,null,null,null,null,null,null,null,null,null,null,null,null,null,null,null,null,"口座名義",null,null,null,null,null,{"$f":"入力フォーム!AI28","v":0}]
["契約内容",null,null,null,null,{"$f":"入力フォーム!F29","v":0}]
[]
[]
["当月の契約分請求金額　①",null,null,null,null,null,null,null,null,null,null,null,null,null,null,null,null,null,null,null,null,null,null,null,{"$f":"入力フォーム!Y32","v":0},null,null,null,null,null,null,null,null,null,null,null,null,null,"契約分査定（ア）　（税込）"]
[]
["契約金額",null,null,null,null,null,null,null,null,null,null,null,null,null,null,null,null,null,null,null,null,null,null,null,{"$f":"入力フォーム!Y34","v":0}]
[]
["出来高金額",null,null,null,null,null,null,null,null,null,null,null,null,null,null,null,null,null,null,null,null,null,null,null,{"$f":"入力フォーム!Y36","v":0},null,null,null,null,null,null,null,null,null,null,null,null,null,null,null,null,null,null,null,null,null,null,null,"％"]
[]
["前月までの受領金額",null,null,null,null,null,null,null,null,null,null,null,null,null,null,null,null,null,null,null,null,null,null,null,{"$f":"入力フォーム!Y38","v":0}]
[]
["＜契約外（税込）＞",null,null,null,null,null,null,null,null,null,"※必ず日付を記入して下さい。（○／○～○／○と項目欄に記入も可）"]
[]
["日付",null,null,"項目",null,null,null,null,null,null,null,null,null,null,null,null,null,"税率",null,"単位",null,"数量",null,null,"単価（税込）",null,null,null,"金額（税込）",null,null,null,null,null,null,null,null,null,"契約外査定　（税込）",null,null,null,null,null,null,null,null,null,null,null,"金額"]
[null,null,null,null,null,null,null,null,null,null,null,null,null,null,null,null,null,null,null,null,null,null,null,null,null,null,null,null,null,null,null,null,null,null,null,null,null,null,"(※は8％対象　　*は非課税対象)"]
[{"$f":"入力フォーム!A44","v":"／"},null,null,{"$f":"入力フォーム!D44","v":0},null,null,null,null,null,null,null,null,null,null,null,null,null,{"$f":"入力フォーム!R44","v":0},null,{"$f":"入力フォーム!T44","v":0},null,{"$f":"入力フォーム!V44","v":0},null,null,{"$f":"入力フォーム!Y44","v":0},null,null,null,{"$f":"入力フォーム!AC44","v":0}]
[]
[{"$f":"入力フォーム!A46","v":"／"},null,null,{"$f":"入力フォーム!D46","v":0},null,null,null,null,null,null,null,null,null,null,null,null,null,{"$f":"入力フォーム!R46","v":0},null,{"$f":"入力フォーム!T46","v":0},null,{"$f":"入力フォーム!V46","v":0},null,null,{"$f":"入力フォーム!Y46","v":0},null,null,null,{"$f":"入力フォーム!AC46","v":0}]
[]
[{"$f":"入力フォーム!A48","v":"／"},null,null,{"$f":"入力フォーム!D48","v":0},null,null,null,null,null,null,null,null,null,null,null,null,null,{"$f":"入力フォーム!R48","v":0},null,{"$f":"入力フォーム!T48","v":0},null,{"$f":"入力フォーム!V48","v":0},null,null,{"$f":"入力フォーム!Y48","v":0},null,null,null,{"$f":"入力フォーム!AC48","v":0}]
[]
[{"$f":"入力フォーム!A50","v":"／"},null,null,{"$f":"入力フォーム!D50","v":0},null,null,null,null,null,null,null,null,null,null,null,null,null,{"$f":"入力フォーム!R50","v":0},null,{"$f":"入力フォーム!T50","v":0},null,{"$f":"入力フォーム!V50","v":0},null,null,{"$f":"入力フォーム!Y50","v":0},null,null,null,{"$f":"入力フォーム!AC50","v":0}]
[]
[{"$f":"入力フォーム!A52","v":"／"},null,null,{"$f":"入力フォーム!D52","v":0},null,null,null,null,null,null,null,null,null,null,null,null,null,{"$f":"入力フォーム!R52","v":0},null,{"$f":"入力フォーム!T52","v":0},null,{"$f":"入力フォーム!V52","v":0},null,null,{"$f":"入力フォーム!Y52","v":0},null,null,null,{"$f":"入力フォーム!AC52","v":0}]
[]
[{"$f":"入力フォーム!A54","v":"／"},null,null,{"$f":"入力フォーム!D54","v":0},null,null,null,null,null,null,null,null,null,null,null,null,null,{"$f":"入力フォーム!R54","v":0},null,{"$f":"入力フォーム!T54","v":0},null,{"$f":"入力フォーム!V54","v":0},null,null,{"$f":"入力フォーム!Y54","v":0},null,null,null,{"$f":"入力フォーム!AC54","v":0}]
[]
[{"$f":"入力フォーム!A56","v":"／"},null,null,{"$f":"入力フォーム!D56","v":0},null,null,null,null,null,null,null,null,null,null,null,null,null,{"$f":"入力フォーム!R56","v":0},null,{"$f":"入力フォーム!T56","v":0},null,{"$f":"入力フォーム!V56","v":0},null,null,{"$f":"入力フォーム!Y56","v":0},null,null,null,{"$f":"入力フォーム!AC56","v":0},null,null,null,null,null,null,null,null,null,"契約外査定　計（イ）"]
[]
[{"$f":"入力フォーム!A58","v":"／"},null,null,{"$f":"入力フォーム!D58","v":0},null,null,null,null,null,null,null,null,null,null,null,null,null,{"$f":"入力フォーム!R58","v":0},null,{"$f":"入力フォーム!T58","v":0},null,{"$f":"入力フォーム!V58","v":0},null,null,{"$f":"入力フォーム!Y58","v":0},null,null,null,{"$f":"入力フォーム!AC58","v":0},null,null,null,null,null,null,null,null,null,"内消費税（10％）"]
[null,null,null,null,null,null,null,null,null,null,null,null,null,null,null,null,null,null,null,null,null,null,null,null,null,null,null,null,null,null,null,null,null,null,null,null,null,null,"対象額（　　　　　　　　　　　　　　　　　　　）"]
[{"$f":"入力フォーム!A60","v":"／"},null,null,{"$f":"入力フォーム!D60","v":0},null,null,null,null,null,null,null,null,null,null,null,null,null,{"$f":"入力フォーム!R60","v":0},null,{"$f":"入力フォーム!T60","v":0},null,{"$f":"入力フォーム!V60","v":0},null,null,{"$f":"入力フォーム!Y60","v":0},null,null,null,{"$f":"入力フォーム!AC60","v":0},null,null,null,null,null,null,null,null,null,"内消費税（ 8％）　※"]
[null,null,null,null,null,null,null,null,null,null,null,null,null,null,null,null,null,null,null,null,null,null,null,null,null,null,null,null,null,null,null,null,null,null,null,null,null,null,"対象額（　　　　　　　　　　　　　　　　　　　）"]
[{"$f":"入力フォーム!A62","v":"／"},null,null,{"$f":"入力フォーム!D62","v":0},null,null,null,null,null,null,null,null,null,null,null,null,null,{"$f":"入力フォーム!R62","v":0},null,{"$f":"入力フォーム!T62","v":0},null,{"$f":"入力フォーム!V62","v":0},null,null,{"$f":"入力フォーム!Y62","v":0},null,null,null,{"$f":"入力フォーム!AC62","v":0},null,null,null,null,null,null,null,null,null,"内非課税　*"]
[null,null,null,null,null,null,null,null,null,null,null,null,null,null,null,null,null,null,null,null,null,null,null,null,null,null,null,null,null,null,null,null,null,null,null,null,null,null,"対象額（　　　　　　　　　　　　　　　　　　　）"]
[{"$f":"入力フォーム!A64","v":"／"},null,null,{"$f":"入力フォーム!D64","v":0},null,null,null,null,null,null,null,null,null,null,null,null,null,{"$f":"入力フォーム!R64","v":0},null,{"$f":"入力フォーム!T64","v":0},null,{"$f":"入力フォーム!V64","v":0},null,null,{"$f":"入力フォーム!Y64","v":0},null,null,null,{"$f":"入力フォーム!AC64","v":0}]
[]
[{"$f":"入力フォーム!A66","v":"／"},null,null,{"$f":"入力フォーム!D66","v":0},null,null,null,null,null,null,null,null,null,null,null,null,null,{"$f":"入力フォーム!R66","v":0},null,{"$f":"入力フォーム!T66","v":0},null,{"$f":"入力フォーム!V66","v":0},null,null,{"$f":"入力フォーム!Y66","v":0},null,null,null,{"$f":"入力フォーム!AC66","v":0},null,null,null,null,null,null,null,null,null,"立替項目　（税込）",null,null,null,null,null,null,null,null,null,null,null,"金額"]
[null,null,null,null,null,null,null,null,null,null,null,null,null,null,null,null,null,null,null,null,null,null,null,null,null,null,null,null,null,null,null,null,null,null,null,null,null,null,"(※は8％対象　　*は非課税対象)"]
[{"$f":"入力フォーム!A68","v":"／"},null,null,{"$f":"入力フォーム!D68","v":0},null,null,null,null,null,null,null,null,null,null,null,null,null,{"$f":"入力フォーム!R68","v":0},null,{"$f":"入力フォーム!T68","v":0},null,{"$f":"入力フォーム!V68","v":0},null,null,{"$f":"入力フォーム!Y68","v":0},null,null,null,{"$f":"入力フォーム!AC68","v":0}]
[]
["小計",null,null,null,null,null,null,null,null,null,null,null,null,null,null,null,null,null,null,null,null,null,null,null,null,null,null,null,{"$f":"入力フォーム!AC70","v":0}]
[]
["対象額",null,null,null,"（",{"$f":"入力フォーム!F72","v":0},null,null,null,null,null,null,null,null,null,"）","内消費税額（10％）",null,null,null,null,null,null,null,null,null,null,null,{"$f":"入力フォーム!AC72","v":0}]
[]
["対象額",null,null,null,"（",{"$f":"入力フォーム!F74","v":0},null,null,null,null,null,null,null,null,null,"）","内消費税額（ 8％）",null,null,null,null,null,null,null,null,null,null,null,{"$f":"入力フォーム!AC74","v":0},null,null,null,null,null,null,null,null,null,"立替相殺　計（ウ）"]
[]
["対象額",null,null,null,"（",{"$f":"入力フォーム!F76","v":0},null,null,null,null,null,null,null,null,null,"）","内非課税",null,null,null,null,null,null,null,null,null,null,null,null,null,null,null,null,null,null,null,null,null,"内消費税（10％）"]
[null,null,null,null,null,null,null,null,null,null,null,null,null,null,null,null,null,null,null,null,null,null,null,null,null,null,null,null,null,null,null,null,null,null,null,null,null,null,"対象額（　　　　　　　　　　　　　　　　　　　）"]
[null,null,null,null,null,null,null,null,null,null,null,null,null,null,null,null,null,null,null,null,null,null,null,null,null,null,null,null,null,null,null,null,null,null,null,null,null,null,"内消費税（ 8％）　※"]
[null,null,null,null,null,null,null,null,null,null,null,null,null,null,null,null,null,null,null,null,null,null,null,null,null,null,null,null,null,null,null,null,null,null,null,null,null,null,"対象額（　　　　　　　　　　　　　　　　　　　）"]
["当月請求金額　合計①＋②",null,null,null,null,null,null,null,null,null,null,null,null,null,null,null,null,null,null,null,null,null,null,null,{"$f":"入力フォーム!Y80","v":0},null,null,null,null,null,null,null,null,null,null,null,null,null,"内非課税　*"]
[null,null,null,null,null,null,null,null,null,null,null,null,null,null,null,null,null,null,null,null,null,null,null,null,null,null,null,null,null,null,null,null,null,null,null,null,null,null,"対象額（　　　　　　　　　　　　　　　　　　　）"]

{"sheet":"提出用","index":4,"n_rows":84,"n_cols":59,"rows_kept":84,"cut":false,"hidden":false,"merged":[[59,38,59,49],[60,38,60,49],[61,38,61,49],[61,50,62,59],[62,38,62,49],[63,38,64,59],[73,38,74,49],[53,50,54,59],[55,50,56,59],[59,50,60,59],[57,38,57,49],[57,50,58,59],[58,38,58,49],[67,38,68,49],[67,50,68,59],[71,38,72,49],[71,50,72,59],[0,0,2,59],[4,44,4,47],[4,48,4,49],[4,50,4,52],[4,53,4,54],[4,55,4,57],[4,58,4,59],[5,0,6,25],[7,28,8,31],[8,0,10,4],[8,5,10,25],[9,32,10,59],[9,28,10,31],[7,32,8,59],[5,28,6,42],[5,43,6,59],[11,0,11,4],[15,28,17,31],[15,32,17,33],[15,34,17,35],[15,48,17,49],[15,50,17,51],[15,52,17,53],[15,54,17,55],[15,56,17,57],[12,0,12,4],[13,28,14,31],[13,32,14,43],[13,44,14,47],[13,48,14,59],[11,58,12,59],[11,32,12,57],[11,28,12,31],[15,58,17,59],[15,36,17,37],[15,38,17,39],[15,40,17,41],[15,42,17,43],[15,44,17,45],[15,46,17,47],[20,34,22,44],[20,45,22,47],[20,48,22,56],[20,57,22,59],[22,0,23,27],[23,28,25,33],[23,34,25,44],[23,45,25,46],[23,47,25,59],[24,0,25,12],[18,28,19,59],[31,38,32,49],[31,50,32,59],[33,0,34,23],[33,24,34,36],[33,38,34,49],[33,50,34,59],[26,28,26,33],[26,34,26,59],[27,28,29,33],[27,34,29,59],[28,0,30,4],[28,5,30,19],[26,0,27,4],[26,5,27,11],[26,12,27,13],[26,14,27,16],[26,17,27,19],[26,20,30,21],[26,22,30,26],[31,0,32,23],[31,24,32,36],[20,0,21,27],[20,28,22,33],[35,0,36,23],[35,24,36,36],[35,38,36,47],[41,24,42,27],[41,28,42,36],[35,48,36,49],[39,0,40,9],[39,10,40,36],[39,38,40,59],[35,50,36,59],[37,0,38,23],[37,24,38,36],[37,38,38,49],[37,50,38,59],[41,50,42,59],[41,38,41,49],[42,38,42,49],[41,0,42,2],[41,3,42,16],[41,17,42,18],[41,19,42,20],[41,21,42,23],[43,0,44,2],[43,3,44,16],[43,17,44,18],[43,19,44,20],[43,21,44,23],[43,24,44,27],[43,28,44,36],[43,38,44,49],[43,50,44,59],[49,24,50,27],[49,28,50,36],[49,38,50,49],[49,50,50,59],[45,3,46,16],[45,17,46,18],[45,19,46,20],[45,21,46,23],[45,24,46,27],[45,28,46,36],[45,38,46,49],[45,50,46,59],[51,0,52,2],[51,3,52,16],[51,17,52,18],[51,19,52,20],[51,21,52,23],[49,0,50,2],[49,3,50,16],[49,17,50,18],[49,19,50,20],[49,21,50,23],[53,0,54,2],[53,3,54,16],[53,17,54,18],[53,19,54,20],[53,21,54,23],[53,24,54,27],[53,28,54,36],[53,38,54,49],[55,38,56,49],[55,0,56,2],[55,3,56,16],[55,17,56,18],[55,19,56,20],[55,21,56,23],[55,24,56,27],[55,28,56,36],[59,0,60,2],[59,3,60,16],[59,17,60,18],[59,19,60,20],[59,21,60,23],[59,24,60,27],[59,28,60,36],[57,0,58,2],[57,3,58,16],[57,17,58,18],[57,19,58,20],[57,21,58,23],[57,24,58,27],[57,28,58,36],[61,0,62,2],[61,3,62,16],[61,17,62,18],[61,19,62,20],[61,21,62,23],[61,24,62,27],[61,28,62,36],[65,50,66,59],[63,0,64,2],[63,3,64,16],[63,17,64,18],[63,19,64,20],[63,21,64,23],[63,24,64,27],[63,28,64,36],[65,28,66,36],[65,38,65,49],[66,38,66,49],[67,0,68,2],[67,3,68,16],[67,17,68,18],[67,19,68,20],[67,21,68,23],[67,24,68,27],[67,28,68,36],[65,0,66,2],[65,3,66,16],[65,17,66,18],[65,19,66,20],[65,21,66,23],[65,24,66,27],[71,16,72,27],[71,0,72,3],[71,4,72,4],[71,5,72,14],[71,15,72,15],[71,28,72,36],[69,38,70,49],[69,50,70,59],[69,0,70,27],[69,28,70,36],[79,0,80,23],[79,24,80,36],[79,50,80,59],[73,50,74,59],[75,38,75,49],[75,50,76,59],[76,38,76,49],[75,16,76,27],[75,0,76,3],[75,4,76,4],[75,5,76,14],[75,15,76,15],[75,28,76,36],[79,38,79,49],[80,38,80,49],[73,16,74,27],[73,0,74,3],[73,4,74,4],[73,5,74,14],[73,15,74,15],[73,28,74,36],[83,0,86,4],[83,5,86,9],[83,10,86,14],[83,15,86,19],[83,20,86,24],[82,0,82,4],[82,5,82,9],[82,10,82,14],[82,15,82,19],[82,20,82,24],[83,35,86,46],[83,47,86,59],[82,47,82,48],[82,49,82,51],[82,52,82,54],[82,55,82,57],[82,58,82,59],[82,35,82,41],[77,38,77,49],[77,50,78,59],[78,38,78,49],[51,50,52,59],[11,5,12,25],[15,0,18,3],[15,4,18,12],[15,14,18,16],[15,17,16,19],[15,20,16,22],[15,23,16,25],[17,17,18,19],[17,20,18,22],[17,23,18,25],[51,24,52,27],[47,0,48,2],[47,3,48,16],[47,17,48,18],[47,19,48,20],[47,21,48,23],[47,24,48,27],[47,28,48,36],[47,38,48,49],[51,28,52,36],[51,38,52,49],[47,50,48,59],[45,0,46,2]]}
["請　求　書"]
[]
[]
[]
[null,null,null,null,null,null,null,null,null,null,null,null,null,null,null,null,null,null,null,null,null,null,null,null,null,null,null,null,null,null,null,null,null,null,null,null,null,null,null,null,null,null,null,null,{"$f":"御社控え!AS5:AV5","v":0},null,null,null,"年",null,{"$f":"御社控え!AY5:BA5","v":0},null,null,"月",null,{"$f":"御社控え!BD5:BF5","v":0},null,null,"日"]
["株式会社ザイソウハウス　　御中",null,null,null,null,null,null,null,null,null,null,null,null,null,null,null,null,null,null,null,null,null,null,null,null,null,null,null,"適格請求書発行事業者登録の有無",null,null,null,null,null,null,null,null,null,null,null,null,null,null,{"$f":"御社控え!AR6:BH7","v":0}]
[]
[null,null,null,null,null,null,null,null,null,null,null,null,null,null,null,null,null,null,null,null,null,null,null,null,null,null,null,null,"〒",null,null,null,{"$f":"御社控え!AG8","v":0}]
["工事名",null,null,null,null,{"$f":"御社控え!F9","v":0}]
[null,null,null,null,null,null,null,null,null,null,null,null,null,null,null,null,null,null,null,null,null,null,null,null,null,null,null,null,"住所",null,null,null,{"$f":"御社控え!AG10:BH11","v":0}]
[]
["ザイソウハウス",null,null,null,null,{"$f":"御社控え!F12","v":0},null,null,null,null,null,null,null,null,null,null,null,null,null,null,null,null,null,null,null,null,null,null,"氏名",null,null,null,{"$f":"御社控え!AG12:BF13","v":0},null,null,null,null,null,null,null,null,null,null,null,null,null,null,null,null,null,null,null,null,null,null,null,null,null,"㊞"]
["工事担当者名"]
[null,null,null,null,null,null,null,null,null,null,null,null,null,null,null,null,null,null,null,null,null,null,null,null,null,null,null,null,"TEL",null,null,null,{"$f":"御社控え!AG14:AR15","v":0},null,null,null,null,null,null,null,null,null,null,null,"FAX",null,null,null,{"$f":"御社控え!AW14:BH15","v":0}]
[]
["工　事\nコード",null,null,null,null,null,null,null,null,null,null,null,null,null,"区分",null,null,"外",null,null,"材",null,null,"経",null,null,null,null,"登録番号",null,null,null,"Ｔ",null,{"$f":"御社控え!AI16:AJ18","v":0},null,{"$f":"御社控え!AK16:AL18","v":0},null,{"$f":"御社控え!AM16:AN18","v":0},null,{"$f":"御社控え!AO16:AP18","v":0},null,{"$f":"御社控え!AQ16:AR18","v":0},null,{"$f":"御社控え!AS16:AT18","v":0},null,{"$f":"御社控え!AU16:AV18","v":0},null,{"$f":"御社控え!AW16:AX18","v":0},null,{"$f":"御社控え!AY16:AZ18","v":0},null,{"$f":"御社控え!BA16:BB18","v":0},null,{"$f":"御社控え!BC16:BD18","v":0},null,{"$f":"御社控え!BE16:BF18","v":0},null,{"$f":"御社控え!BG16:BH18","v":0}]
[]
[null,null,null,null,null,null,null,null,null,null,null,null,null,null,null,null,null,"Ａ",null,null,"Ｂ",null,null,"Ｃ"]
[null,null,null,null,null,null,null,null,null,null,null,null,null,null,null,null,null,null,null,null,null,null,null,null,null,null,null,null,"※新規あるいは変更のある場合のみ記入して下さい。"]
[]
["※以下、太線内に請求内容を記入し各工事現場ごとに提出して下さい。",null,null,null,null,null,null,null,null,null,null,null,null,null,null,null,null,null,null,null,null,null,null,null,null,null,null,null,"振込銀行",null,null,null,null,null,{"$f":"御社控え!AI21:AS23","v":0},null,null,null,null,null,null,null,null,null,null,{"$f":"御社控え!AT21","v":"銀行"},null,null,{"$f":"御社控え!AW21:BE23","v":0},null,null,null,null,null,null,null,null,{"$f":"御社控え!BF21","v":"支店"}]
[]
["※別紙にて追加記入する場合は、タテ向Ａ４用紙を使用すること。"]
[null,null,null,null,null,null,null,null,null,null,null,null,null,null,null,null,null,null,null,null,null,null,null,null,null,null,null,null,"口座",null,null,null,null,null,{"$f":"御社控え!AI24:AS26","v":"　"},null,null,null,null,null,null,null,null,null,null,"№",null,{"$f":"御社控え!AV24:BH26","v":0}]
["＜契約分（税込）＞"]
[]
["契約№",null,null,null,null,{"$f":"御社控え!F27:L28","v":0},null,null,null,null,null,null,"第",null,{"$f":"御社控え!O27:Q28","v":0},null,null,"回目",null,null,"管理",null,null,null,null,null,null,null,"フリガナ",null,null,null,null,null,{"$f":"御社控え!AI27:BH27","v":0}]
[null,null,null,null,null,null,null,null,null,null,null,null,null,null,null,null,null,null,null,null,null,null,null,null,null,null,null,null,"口座名義",null,null,null,null,null,{"$f":"御社控え!AI28:BH30","v":0}]
["契約内容",null,null,null,null,{"$f":"御社控え!F29:T31","v":0}]
[]
[]
["当月の契約分請求金額　①",null,null,null,null,null,null,null,null,null,null,null,null,null,null,null,null,null,null,null,null,null,null,null,{"$f":"御社控え!Y32:AK33","v":0},null,null,null,null,null,null,null,null,null,null,null,null,null,"契約分査定（ア）　（税込）"]
[]
["契約金額",null,null,null,null,null,null,null,null,null,null,null,null,null,null,null,null,null,null,null,null,null,null,null,{"$f":"御社控え!Y34:AK35","v":0}]
[]
["出来高金額",null,null,null,null,null,null,null,null,null,null,null,null,null,null,null,null,null,null,null,null,null,null,null,{"$f":"御社控え!Y36:AK37","v":0},null,null,null,null,null,null,null,null,null,null,null,null,null,null,null,null,null,null,null,null,null,null,null,"％"]
[]
["前月までの受領金額",null,null,null,null,null,null,null,null,null,null,null,null,null,null,null,null,null,null,null,null,null,null,null,{"$f":"御社控え!Y38:AK39","v":0}]
[]
["＜契約外（税込）＞",null,null,null,null,null,null,null,null,null,"※必ず日付を記入して下さい。（○／○～○／○と項目欄に記入も可）"]
[]
["日付",null,null,"項目",null,null,null,null,null,null,null,null,null,null,null,null,null,"税率",null,"単位",null,"数量",null,null,"単価（税込）",null,null,null,"金額（税込）",null,null,null,null,null,null,null,null,null,"契約外査定　（税込）",null,null,null,null,null,null,null,null,null,null,null,"金額"]
[null,null,null,null,null,null,null,null,null,null,null,null,null,null,null,null,null,null,null,null,null,null,null,null,null,null,null,null,null,null,null,null,null,null,null,null,null,null,"(※は8％対象　　*は非課税対象)"]
[{"$f":"御社控え!A44:C45","v":"／"},null,null,{"$f":"御社控え!D44:Q45","v":0},null,null,null,null,null,null,null,null,null,null,null,null,null,{"$f":"御社控え!R44:S45","v":0},null,{"$f":"御社控え!T44:U45","v":0},null,{"$f":"御社控え!V44:X45","v":0},null,null,{"$f":"御社控え!Y44:AB45","v":0},null,null,null,{"$f":"御社控え!AC44:AK45","v":0}]
[]
[{"$f":"御社控え!A46:C47","v":"／"},null,null,{"$f":"御社控え!D46:Q47","v":0},null,null,null,null,null,null,null,null,null,null,null,null,null,{"$f":"御社控え!R46:S47","v":0},null,{"$f":"御社控え!T46:U47","v":0},null,{"$f":"御社控え!V46:X47","v":0},null,null,{"$f":"御社控え!Y46:AB47","v":0},null,null,null,{"$f":"御社控え!AC46:AK47","v":0}]
[]
[{"$f":"御社控え!A48:C49","v":"／"},null,null,{"$f":"御社控え!D48:Q49","v":0},null,null,null,null,null,null,null,null,null,null,null,null,null,{"$f":"御社控え!R48:S49","v":0},null,{"$f":"御社控え!T48:U49","v":0},null,{"$f":"御社控え!V48:X49","v":0},null,null,{"$f":"御社控え!Y48:AB49","v":0},null,null,null,{"$f":"御社控え!AC48:AK49","v":0}]
[]
[{"$f":"御社控え!A50:C51","v":"／"},null,null,{"$f":"御社控え!D50:Q51","v":0},null,null,null,null,null,null,null,null,null,null,null,null,null,{"$f":"御社控え!R50:S51","v":0},null,{"$f":"御社控え!T50:U51","v":0},null,{"$f":"御社控え!V50:X51","v":0},null,null,{"$f":"御社控え!Y50:AB51","v":0},null,null,null,{"$f":"御社控え!AC50:AK51","v":0}]
[]
[{"$f":"御社控え!A52:C53","v":"／"},null,null,{"$f":"御社控え!D52:Q53","v":0},null,null,null,null,null,null,null,null,null,null,null,null,null,{"$f":"御社控え!R52:S53","v":0},null,{"$f":"御社控え!T52:U53","v":0},null,{"$f":"御社控え!V52:X53","v":0},null,null,{"$f":"御社控え!Y52:AB53","v":0},null,null,null,{"$f":"御社控え!AC52:AK53","v":0}]
[]
[{"$f":"御社控え!A54:C55","v":"／"},null,null,{"$f":"御社控え!D54:Q55","v":0},null,null,null,null,null,null,null,null,null,null,null,null,null,{"$f":"御社控え!R54:S55","v":0},null,{"$f":"御社控え!T54:U55","v":0},null,{"$f":"御社控え!V54:X55","v":0},null,null,{"$f":"御社控え!Y54:AB55","v":0},null,null,null,{"$f":"御社控え!AC54:AK55","v":0}]
[]
[{"$f":"御社控え!A56:C57","v":"／"},null,null,{"$f":"御社控え!D56:Q57","v":0},null,null,null,null,null,null,null,null,null,null,null,null,null,{"$f":"御社控え!R56:S57","v":0},null,{"$f":"御社控え!T56:U57","v":0},null,{"$f":"御社控え!V56:X57","v":0},null,null,{"$f":"御社控え!Y56:AB57","v":0},null,null,null,{"$f":"御社控え!AC56:AK57","v":0},null,null,null,null,null,null,null,null,null,"契約外査定　計（イ）"]
[]
[{"$f":"御社控え!A58:C59","v":"／"},null,null,{"$f":"御社控え!D58:Q59","v":0},null,null,null,null,null,null,null,null,null,null,null,null,null,{"$f":"御社控え!R58:S59","v":0},null,{"$f":"御社控え!T58:U59","v":0},null,{"$f":"御社控え!V58:X59","v":0},null,null,{"$f":"御社控え!Y58:AB59","v":0},null,null,null,{"$f":"御社控え!AC58:AK59","v":0},null,null,null,null,null,null,null,null,null,"内消費税（10％）"]
[null,null,null,null,null,null,null,null,null,null,null,null,null,null,null,null,null,null,null,null,null,null,null,null,null,null,null,null,null,null,null,null,null,null,null,null,null,null,"対象額（　　　　　　　　　　　　　　　　　　　）"]
[{"$f":"御社控え!A60:C61","v":"／"},null,null,{"$f":"御社控え!D60:Q61","v":0},null,null,null,null,null,null,null,null,null,null,null,null,null,{"$f":"御社控え!R60:S61","v":0},null,{"$f":"御社控え!T60:U61","v":0},null,{"$f":"御社控え!V60:X61","v":0},null,null,{"$f":"御社控え!Y60:AB61","v":0},null,null,null,{"$f":"御社控え!AC60:AK61","v":0},null,null,null,null,null,null,null,null,null,"内消費税（ 8％）　※"]
[null,null,null,null,null,null,null,null,null,null,null,null,null,null,null,null,null,null,null,null,null,null,null,null,null,null,null,null,null,null,null,null,null,null,null,null,null,null,"対象額（　　　　　　　　　　　　　　　　　　　）"]
[{"$f":"御社控え!A62:C63","v":"／"},null,null,{"$f":"御社控え!D62:Q63","v":0},null,null,null,null,null,null,null,null,null,null,null,null,null,{"$f":"御社控え!R62:S63","v":0},null,{"$f":"御社控え!T62:U63","v":0},null,{"$f":"御社控え!V62:X63","v":0},null,null,{"$f":"御社控え!Y62:AB63","v":0},null,null,null,{"$f":"御社控え!AC62:AK63","v":0},null,null,null,null,null,null,null,null,null,"内非課税　*"]
[null,null,null,null,null,null,null,null,null,null,null,null,null,null,null,null,null,null,null,null,null,null,null,null,null,null,null,null,null,null,null,null,null,null,null,null,null,null,"対象額（　　　　　　　　　　　　　　　　　　　）"]
[{"$f":"御社控え!A64:C65","v":"／"},null,null,{"$f":"御社控え!D64:Q65","v":0},null,null,null,null,null,null,null,null,null,null,null,null,null,{"$f":"御社控え!R64:S65","v":0},null,{"$f":"御社控え!T64:U65","v":0},null,{"$f":"御社控え!V64:X65","v":0},null,null,{"$f":"御社控え!Y64:AB65","v":0},null,null,null,{"$f":"御社控え!AC64:AK65","v":0}]
[]
[{"$f":"御社控え!A66:C67","v":"／"},null,null,{"$f":"御社控え!D66:Q67","v":0},null,null,null,null,null,null,null,null,null,null,null,null,null,{"$f":"御社控え!R66:S67","v":0},null,{"$f":"御社控え!T66:U67","v":0},null,{"$f":"御社控え!V66:X67","v":0},null,null,{"$f":"御社控え!Y66:AB67","v":0},null,null,null,{"$f":"御社控え!AC66:AK67","v":0},null,null,null,null,null,null,null,null,null,"立替項目　（税込）",null,null,null,null,null,null,null,null,null,null,null,"金額"]
[null,null,null,null,null,null,null,null,null,null,null,null,null,null,null,null,null,null,null,null,null,null,null,null,null,null,null,null,null,null,null,null,null,null,null,null,null,null,"(※は8％対象　　*は非課税対象)"]
[{"$f":"御社控え!A68:C69","v":"／"},null,null,{"$f":"御社控え!D68:Q69","v":0},null,null,null,null,null,null,null,null,null,null,null,null,null,{"$f":"御社控え!R68:S69","v":0},null,{"$f":"御社控え!T68:U69","v":0},null,{"$f":"御社控え!V68:X69","v":0},null,null,{"$f":"御社控え!Y68:AB69","v":0},null,null,null,{"$f":"御社控え!AC68:AK69","v":0}]
[]
["小計",null,null,null,null,null,null,null,null,null,null,null,null,null,null,null,null,null,null,null,null,null,null,null,null,null,null,null,{"$f":"御社控え!AC70:AK71","v":0}]
[]
["対象額",null,null,null,"（",{"$f":"御社控え!F72:O73","v":0},null,null,null,null,null,null,null,null,null,"）","内消費税額（10％）",null,null,null,null,null,null,null,null,null,null,null,{"$f":"御社控え!AC72:AK73","v":0}]
[]
["対象額",null,null,null,"（",{"$f":"御社控え!F74:O75","v":0},null,null,null,null,null,null,null,null,null,"）","内消費税額（ 8％）",null,null,null,null,null,null,null,null,null,null,null,{"$f":"御社控え!AC74:AK75","v":0},null,null,null,null,null,null,null,null,null,"立替相殺　計（ウ）"]
[]
["対象額",null,null,null,"（",{"$f":"御社控え!F76:O77","v":0},null,null,null,null,null,null,null,null,null,"）","内非課税",null,null,null,null,null,null,null,null,null,null,null,null,null,null,null,null,null,null,null,null,null,"内消費税（10％）"]
[null,null,null,null,null,null,null,null,null,null,null,null,null,null,null,null,null,null,null,null,null,null,null,null,null,null,null,null,null,null,null,null,null,null,null,null,null,null,"対象額（　　　　　　　　　　　　　　　　　　　）"]
[null,null,null,null,null,null,null,null,null,null,null,null,null,null,null,null,null,null,null,null,null,null,null,null,null,null,null,null,null,null,null,null,null,null,null,null,null,null,"内消費税（ 8％）　※"]
[null,null,null,null,null,null,null,null,null,null,null,null,null,null,null,null,null,null,null,null,null,null,null,null,null,null,null,null,null,null,null,null,null,null,null,null,null,null,"対象額（　　　　　　　　　　　　　　　　　　　）"]
["当月請求金額　合計①＋②",null,null,null,null,null,null,null,null,null,null,null,null,null,null,null,null,null,null,null,null,null,null,null,{"$f":"御社控え!Y80:AK81","v":0},null,null,null,null,null,null,null,null,null,null,null,null,null,"内非課税　*"]
[null,null,null,null,null,null,null,null,null,null,null,null,null,null,null,null,null,null,null,null,null,null,null,null,null,null,null,null,null,null,null,null,null,null,null,null,null,null,"対象額（　　　　　　　　　　　　　　　　　　　）"]
[]
["担当",null,null,null,null,"課長",null,null,null,null,"部長",null,null,null,null,"専務",null,null,null,null,"管理",null,null,null,null,null,null,null,null,null,null,null,null,null,null,"支払日",null,null,null,null,null,null,null,null,null,null,null,"年",null,null,null,null,"月",null,null,null,null,null,"日"]
[null,null,null,null,null,null,null,null,null,null,null,null,null,null,null,null,null,null,null,null,null,null,null,null,null,null,null,null,null,null,null,null,null,null,null,"支払金額（税込）\n合計（ア）+（イ）-（ウ）"]

{"sheet":"手書きの方はこちらを印刷して下さい","index":5,"n_rows":168,"n_cols":59,"rows_kept":168,"cut":false,"hidden":false,"merged":[[154,38,155,49],[154,50,155,59],[156,28,157,36],[156,38,157,49],[156,50,157,59],[158,28,159,36],[158,38,159,49],[87,0,89,59],[91,44,91,47],[91,48,91,49],[91,50,91,52],[91,53,91,54],[91,55,91,57],[91,58,91,59],[92,0,93,25],[92,28,93,42],[92,43,93,59],[53,38,54,49],[55,38,56,49],[59,38,59,49],[60,38,60,49],[61,38,61,49],[61,50,62,59],[62,38,62,49],[63,38,64,59],[53,50,54,59],[170,0,173,4],[170,5,173,9],[170,10,173,14],[170,15,173,19],[170,20,173,24],[170,35,173,46],[170,47,173,59],[169,0,169,4],[169,5,169,9],[169,10,169,14],[169,15,169,19],[169,20,169,24],[169,35,169,41],[169,47,169,48],[169,49,169,51],[169,52,169,54],[164,38,164,49],[164,50,165,59],[165,38,165,49],[166,0,167,23],[166,24,167,36],[166,50,167,59],[166,38,166,49],[167,38,167,49],[169,55,169,57],[169,58,169,59],[160,50,161,59],[160,38,161,49],[162,28,163,36],[162,38,162,49],[162,50,163,59],[163,38,163,49],[160,0,161,3],[160,4,161,4],[160,5,161,14],[160,15,161,15],[160,16,161,27],[162,0,163,3],[162,4,163,4],[162,5,163,14],[162,15,163,15],[162,16,163,27],[160,28,161,36],[158,50,159,59],[154,0,155,2],[154,3,155,16],[154,17,155,18],[154,19,155,20],[154,21,155,23],[154,24,155,27],[156,0,157,27],[152,0,153,2],[152,3,153,16],[152,17,153,18],[152,19,153,20],[152,21,153,23],[152,24,153,27],[152,28,153,36],[152,50,153,59],[152,38,152,49],[153,38,153,49],[158,0,159,3],[158,4,159,4],[158,5,159,14],[158,15,159,15],[158,16,159,27],[154,28,155,36],[150,38,151,59],[148,0,149,2],[148,3,149,16],[148,17,149,18],[148,19,149,20],[148,21,149,23],[148,24,149,27],[148,28,149,36],[150,0,151,2],[150,3,151,16],[150,17,151,18],[150,19,151,20],[150,21,151,23],[150,24,151,27],[150,28,151,36],[148,38,148,49],[148,50,149,59],[149,38,149,49],[146,0,147,2],[146,3,147,16],[146,17,147,18],[146,19,147,20],[146,21,147,23],[146,24,147,27],[146,28,147,36],[146,50,147,59],[144,0,145,2],[144,3,145,16],[144,17,145,18],[144,19,145,20],[144,21,145,23],[144,24,145,27],[144,28,145,36],[144,38,144,49],[144,50,145,59],[145,38,145,49],[146,38,146,49],[147,38,147,49],[142,0,143,2],[142,3,143,16],[142,17,143,18],[142,19,143,20],[142,21,143,23],[142,24,143,27],[142,28,143,36],[142,50,143,59],[140,0,141,2],[140,3,141,16],[140,17,141,18],[140,19,141,20],[140,21,141,23],[140,24,141,27],[140,28,141,36],[140,50,141,59],[140,38,141,49],[142,38,143,49],[138,0,139,2],[138,3,139,16],[138,17,139,18],[138,19,139,20],[138,21,139,23],[138,24,139,27],[138,28,139,36],[138,38,139,49],[138,50,139,59],[136,0,137,2],[136,3,137,16],[136,17,137,18],[136,19,137,20],[136,21,137,23],[136,24,137,27],[136,28,137,36],[136,38,137,49],[136,50,137,59],[134,0,135,2],[134,3,135,16],[134,17,135,18],[134,19,135,20],[134,21,135,23],[134,24,135,27],[134,28,135,36],[134,38,135,49],[134,50,135,59],[132,0,133,2],[132,3,133,16],[132,17,133,18],[132,19,133,20],[132,21,133,23],[132,24,133,27],[132,28,133,36],[132,38,133,49],[132,50,133,59],[130,0,131,2],[130,3,131,16],[130,17,131,18],[130,19,131,20],[130,21,131,23],[130,24,131,27],[130,28,131,36],[130,38,131,49],[130,50,131,59],[124,0,125,23],[124,24,125,36],[124,38,125,49],[124,50,125,59],[128,0,129,2],[128,3,129,16],[128,17,129,18],[128,19,129,20],[128,21,129,23],[128,24,129,27],[128,28,129,36],[128,50,129,59],[126,0,127,9],[126,10,127,36],[126,38,127,59],[128,38,128,49],[129,38,129,49],[118,0,119,23],[118,24,119,36],[118,38,119,49],[118,50,119,59],[120,0,121,23],[120,24,121,36],[120,38,121,49],[120,50,121,59],[122,0,123,23],[122,24,123,36],[122,38,123,47],[122,48,123,49],[122,50,123,59],[113,0,114,4],[113,5,114,11],[113,12,114,13],[113,14,114,16],[113,17,114,19],[113,20,117,21],[113,22,117,26],[113,28,113,33],[113,34,113,59],[114,28,116,33],[114,34,116,59],[115,0,117,4],[115,5,117,19],[104,17,105,19],[104,20,105,22],[104,23,105,25],[107,0,108,27],[107,28,109,33],[107,34,109,44],[107,45,109,47],[107,48,109,56],[107,57,109,59],[109,0,110,27],[110,28,112,33],[110,34,112,44],[110,45,112,46],[110,47,112,59],[111,0,112,12],[102,58,104,59],[105,28,106,59],[100,28,101,31],[100,32,101,43],[100,44,101,47],[100,48,101,59],[102,0,105,3],[102,4,105,12],[102,14,105,16],[102,17,103,19],[102,20,103,22],[102,23,103,25],[102,28,104,31],[102,32,104,33],[102,34,104,35],[102,36,104,37],[102,38,104,39],[102,40,104,41],[102,42,104,43],[102,44,104,45],[102,46,104,47],[102,48,104,49],[102,50,104,51],[102,52,104,53],[102,54,104,55],[102,56,104,57],[82,49,82,51],[82,52,82,54],[82,55,82,57],[82,58,82,59],[83,0,86,4],[83,5,86,9],[83,10,86,14],[83,15,86,19],[83,20,86,24],[82,0,82,4],[82,5,82,9],[82,10,82,14],[82,15,82,19],[82,20,82,24],[82,35,82,41],[83,35,86,46],[83,47,86,59],[82,47,82,48],[77,38,77,49],[77,50,78,59],[78,38,78,49],[79,0,80,23],[79,24,80,36],[79,50,80,59],[73,50,74,59],[75,38,75,49],[75,50,76,59],[76,38,76,49],[75,28,76,36],[73,38,74,49],[79,38,79,49],[80,38,80,49],[73,0,74,3],[73,4,74,4],[73,5,74,14],[73,15,74,15],[73,16,74,27],[75,0,76,3],[75,4,76,4],[75,5,76,14],[75,15,76,15],[75,16,76,27],[69,38,70,49],[69,50,70,59],[73,28,74,36],[71,38,72,49],[71,50,72,59],[71,28,72,36],[69,0,70,27],[69,28,70,36],[71,0,72,3],[71,4,72,4],[71,5,72,14],[71,15,72,15],[71,16,72,27],[67,38,68,49],[67,50,68,59],[63,28,64,36],[65,0,66,2],[65,3,66,16],[65,17,66,18],[65,19,66,20],[65,21,66,23],[65,24,66,27],[65,28,66,36],[63,0,64,2],[63,3,64,16],[63,17,64,18],[63,19,64,20],[63,21,64,23],[63,24,64,27],[67,0,68,2],[67,3,68,16],[67,17,68,18],[67,19,68,20],[67,21,68,23],[67,24,68,27],[67,28,68,36],[61,0,62,2],[61,3,62,16],[61,17,62,18],[61,19,62,20],[61,21,62,23],[61,24,62,27],[61,28,62,36],[65,50,66,59],[65,38,65,49],[66,38,66,49],[59,0,60,2],[59,3,60,16],[59,17,60,18],[59,19,60,20],[59,21,60,23],[59,24,60,27],[59,28,60,36],[59,50,60,59],[57,0,58,2],[57,3,58,16],[57,17,58,18],[57,19,58,20],[57,21,58,23],[57,24,58,27],[57,28,58,36],[57,38,57,49],[57,50,58,59],[58,38,58,49],[55,0,56,2],[55,3,56,16],[55,17,56,18],[55,19,56,20],[55,21,56,23],[55,24,56,27],[55,28,56,36],[55,50,56,59],[51,28,52,36],[51,38,52,49],[51,50,52,59],[53,0,54,2],[53,3,54,16],[53,17,54,18],[53,19,54,20],[53,21,54,23],[53,24,54,27],[53,28,54,36],[51,0,52,2],[51,3,52,16],[51,17,52,18],[51,19,52,20],[51,21,52,23],[51,24,52,27],[49,0,50,2],[49,3,50,16],[49,17,50,18],[49,19,50,20],[49,21,50,23],[49,24,50,27],[49,28,50,36],[49,38,50,49],[49,50,50,59],[47,0,48,2],[47,3,48,16],[47,17,48,18],[47,19,48,20],[47,21,48,23],[47,24,48,27],[47,28,48,36],[47,38,48,49],[47,50,48,59],[45,0,46,2],[45,3,46,16],[45,17,46,18],[45,19,46,20],[45,21,46,23],[45,24,46,27],[45,28,46,36],[45,38,46,49],[45,50,46,59],[43,0,44,2],[43,3,44,16],[43,17,44,18],[43,19,44,20],[43,21,44,23],[43,24,44,27],[43,28,44,36],[43,38,44,49],[43,50,44,59],[37,0,38,23],[37,24,38,36],[37,38,38,49],[37,50,38,59],[41,0,42,2],[41,3,42,16],[41,17,42,18],[41,19,42,20],[41,21,42,23],[41,24,42,27],[41,28,42,36],[41,50,42,59],[39,0,40,9],[39,10,40,36],[41,38,41,49],[42,38,42,49],[39,38,40,59],[31,0,32,23],[31,24,32,36],[31,38,32,49],[31,50,32,59],[33,0,34,23],[33,24,34,36],[33,38,34,49],[33,50,34,59],[35,0,36,23],[35,24,36,36],[35,38,36,47],[35,48,36,49],[35,50,36,59],[26,0,27,4],[26,5,27,11],[26,12,27,13],[26,14,27,16],[26,17,27,19],[26,20,30,21],[26,22,30,26],[26,28,26,33],[26,34,26,59],[27,28,29,33],[27,34,29,59],[28,0,30,4],[28,5,30,19],[15,34,17,35],[15,36,17,37],[15,38,17,39],[15,40,17,41],[20,0,21,27],[20,28,22,33],[20,34,22,44],[20,45,22,47],[18,28,19,59],[20,48,22,56],[20,57,22,59],[22,0,23,27],[23,28,25,33],[23,34,25,44],[23,45,25,46],[23,47,25,59],[24,0,25,12],[13,28,14,31],[13,32,14,43],[13,44,14,47],[13,48,14,59],[15,0,18,3],[15,4,18,12],[15,14,18,16],[15,17,16,19],[15,20,16,22],[15,23,16,25],[15,54,17,55],[15,56,17,57],[15,58,17,59],[17,17,18,19],[17,20,18,22],[17,23,18,25],[15,42,17,43],[15,44,17,45],[15,46,17,47],[15,48,17,49],[15,50,17,51],[15,52,17,53],[15,28,17,31],[15,32,17,33],[0,0,2,59],[4,44,4,47],[4,48,4,49],[4,50,4,52],[4,53,4,54],[4,55,4,57],[4,58,4,59],[9,32,10,59],[11,5,12,25],[11,28,12,31],[11,32,12,57],[11,58,12,59],[5,0,6,25],[5,28,6,42],[5,43,6,59],[7,28,8,31],[7,32,8,59],[8,0,10,4],[8,5,10,25],[9,28,10,31],[11,0,11,4],[12,0,12,4],[94,28,95,31],[94,32,95,59],[95,0,97,4],[95,5,97,25],[96,28,97,31],[96,32,97,59],[98,5,99,25],[98,28,99,31],[98,32,99,57],[98,58,99,59],[98,0,98,4],[99,0,99,4]]}
["請　求　書"]
[]
[]
[]
[null,null,null,null,null,null,null,null,null,null,null,null,null,null,null,null,null,null,null,null,null,null,null,null,null,null,null,null,null,null,null,null,null,null,null,null,null,null,null,null,null,null,null,null,null,null,null,null,"年",null,null,null,null,"月",null,null,null,null,"日"]
["株式会社ザイソウハウス　　御中",null,null,null,null,null,null,null,null,null,null,null,null,null,null,null,null,null,null,null,null,null,null,null,null,null,null,null,"適格請求書発行事業者登録の有無",null,null,null,null,null,null,null,null,null,null,null,null,null,null,"　□　有　　　・　　　□　無"]
[]
[null,null,null,null,null,null,null,null,null,null,null,null,null,null,null,null,null,null,null,null,null,null,null,null,null,null,null,null,"〒"]
["工事名"]
[null,null,null,null,null,null,null,null,null,null,null,null,null,null,null,null,null,null,null,null,null,null,null,null,null,null,null,null,"住所"]
[]
["ザイソウハウス",null,null,null,null,null,null,null,null,null,null,null,null,null,null,null,null,null,null,null,null,null,null,null,null,null,null,null,"氏名",null,null,null,null,null,null,null,null,null,null,null,null,null,null,null,null,null,null,null,null,null,null,null,null,null,null,null,null,null,"㊞"]
["工事担当者名"]
[null,null,null,null,null,null,null,null,null,null,null,null,null,null,null,null,null,null,null,null,null,null,null,null,null,null,null,null,"TEL",null,null,null,null,null,null,null,null,null,null,null,null,null,null,null,"FAX"]
[]
["工　事\nコード",null,null,null,null,null,null,null,null,null,null,null,null,null,"区分",null,null,"外",null,null,"材",null,null,"経",null,null,null,null,"登録番号",null,null,null,"Ｔ"]
[]
[null,null,null,null,null,null,null,null,null,null,null,null,null,null,null,null,null,"Ａ",null,null,"Ｂ",null,null,"Ｃ"]
[null,null,null,null,null,null,null,null,null,null,null,null,null,null,null,null,null,null,null,null,null,null,null,null,null,null,null,null,"※新規あるいは変更のある場合のみ記入して下さい。"]
[]
["※以下、太線内に請求内容を記入し各工事現場ごとに提出して下さい。",null,null,null,null,null,null,null,null,null,null,null,null,null,null,null,null,null,null,null,null,null,null,null,null,null,null,null,"振込銀行",null,null,null,null,null,null,null,null,null,null,null,null,null,null,null,null,"銀行",null,null,null,null,null,null,null,null,null,null,null,"支店"]
[]
["※別紙にて追加記入する場合は、タテ向Ａ４用紙を使用すること。"]
[null,null,null,null,null,null,null,null,null,null,null,null,null,null,null,null,null,null,null,null,null,null,null,null,null,null,null,null,"口座",null,null,null,null,null,"普通 　・　 当座",null,null,null,null,null,null,null,null,null,null,"№"]
["＜契約分（税込）＞"]
[]
["契約№",null,null,null,null,null,null,null,null,null,null,null,"第",null,null,null,null,"回目",null,null,"管理",null,null,null,null,null,null,null,"フリガナ"]
[null,null,null,null,null,null,null,null,null,null,null,null,null,null,null,null,null,null,null,null,null,null,null,null,null,null,null,null,"口座名義"]
["契約内容"]
[]
[]
["当月の契約分請求金額①",null,null,null,null,null,null,null,null,null,null,null,null,null,null,null,null,null,null,null,null,null,null,null,null,null,null,null,null,null,null,null,null,null,null,null,null,null,"契約分査定（ア）　（税込）"]
[]
["契約金額"]
[]
["出来高金額",null,null,null,null,null,null,null,null,null,null,null,null,null,null,null,null,null,null,null,null,null,null,null,null,null,null,null,null,null,null,null,null,null,null,null,null,null,null,null,null,null,null,null,null,null,null,null,"％"]
[]
["前月までの受領金額"]
[]
["＜契約外（税込）＞",null,null,null,null,null,null,null,null,null,"※必ず日付を記入して下さい。（○／○～○／○と項目欄に記入も可）"]
[]
["日付",null,null,"項目",null,null,null,null,null,null,null,null,null,null,null,null,null,"税率",null,"単位",null,"数量",null,null,"単価（税込）",null,null,null,"金額（税込）",null,null,null,null,null,null,null,null,null,"契約外査定　（税込）",null,null,null,null,null,null,null,null,null,null,null,"金額"]
[null,null,null,null,null,null,null,null,null,null,null,null,null,null,null,null,null,null,null,null,null,null,null,null,null,null,null,null,null,null,null,null,null,null,null,null,null,null,"(※は8％対象　　*は非課税対象)"]
["／"]
[]
["／"]
[]
["／"]
[]
["／"]
[]
["／"]
[]
["／"]
[]
["／",null,null,null,null,null,null,null,null,null,null,null,null,null,null,null,null,null,null,null,null,null,null,null,null,null,null,null,null,null,null,null,null,null,null,null,null,null,"契約外査定　計（イ）"]
[]
["／",null,null,null,null,null,null,null,null,null,null,null,null,null,null,null,null,null,null,null,null,null,null,null,null,null,null,null,null,null,null,null,null,null,null,null,null,null,"内消費税（10％）"]
[null,null,null,null,null,null,null,null,null,null,null,null,null,null,null,null,null,null,null,null,null,null,null,null,null,null,null,null,null,null,null,null,null,null,null,null,null,null,"対象額（　　　　　　　　　　　　　　　　　　　）"]
["／",null,null,null,null,null,null,null,null,null,null,null,null,null,null,null,null,null,null,null,null,null,null,null,null,null,null,null,null,null,null,null,null,null,null,null,null,null,"内消費税（ 8％）　※"]
[null,null,null,null,null,null,null,null,null,null,null,null,null,null,null,null,null,null,null,null,null,null,null,null,null,null,null,null,null,null,null,null,null,null,null,null,null,null,"対象額（　　　　　　　　　　　　　　　　　　　）"]
["／",null,null,null,null,null,null,null,null,null,null,null,null,null,null,null,null,null,null,null,null,null,null,null,null,null,null,null,null,null,null,null,null,null,null,null,null,null,"内非課税　*"]
[null,null,null,null,null,null,null,null,null,null,null,null,null,null,null,null,null,null,null,null,null,null,null,null,null,null,null,null,null,null,null,null,null,null,null,null,null,null,"対象額（　　　　　　　　　　　　　　　　　　　）"]
["／"]
[]
["／",null,null,null,null,null,null,null,null,null,null,null,null,null,null,null,null,null,null,null,null,null,null,null,null,null,null,null,null,null,null,null,null,null,null,null,null,null,"立替項目　（税込）",null,null,null,null,null,null,null,null,null,null,null,"金額"]
[null,null,null,null,null,null,null,null,null,null,null,null,null,null,null,null,null,null,null,null,null,null,null,null,null,null,null,null,null,null,null,null,null,null,null,null,null,null,"(※は8％対象　　*は非課税対象)"]
["／"]
[]
["小計"]
[]
["対象額",null,null,null,"（",null,null,null,null,null,null,null,null,null,null,"）","内消費税額（10％）"]
[]
["対象額",null,null,null,"（",null,null,null,null,null,null,null,null,null,null,"）","内消費税額（ 8％）",null,null,null,null,null,null,null,null,null,null,null,null,null,null,null,null,null,null,null,null,null,"立替相殺　計（ウ）"]
[]
["対象額",null,null,null,"（",null,null,null,null,null,null,null,null,null,null,"）","内非課税",null,null,null,null,null,null,null,null,null,null,null,null,null,null,null,null,null,null,null,null,null,"内消費税（10％）"]
[null,null,null,null,null,null,null,null,null,null,null,null,null,null,null,null,null,null,null,null,null,null,null,null,null,null,null,null,null,null,null,null,null,null,null,null,null,null,"対象額（　　　　　　　　　　　　　　　　　　　）"]
[null,null,null,null,null,null,null,null,null,null,null,null,null,null,null,null,null,null,null,null,null,null,null,null,null,null,null,null,null,null,null,null,null,null,null,null,null,null,"内消費税（ 8％）　※"]
[null,null,null,null,null,null,null,null,null,null,null,null,null,null,null,null,null,null,null,null,null,null,null,null,null,null,null,null,null,null,null,null,null,null,null,null,null,null,"対象額（　　　　　　　　　　　　　　　　　　　）"]
["当月請求金額　合計①＋②",null,null,null,null,null,null,null,null,null,null,null,null,null,null,null,null,null,null,null,null,null,null,null,null,null,null,null,null,null,null,null,null,null,null,null,null,null,"内非課税　*"]
[null,null,null,null,null,null,null,null,null,null,null,null,null,null,null,null,null,null,null,null,null,null,null,null,null,null,null,null,null,null,null,null,null,null,null,null,null,null,"対象額（　　　　　　　　　　　　　　　　　　　）"]
[]
["担当",null,null,null,null,"課長",null,null,null,null,"部長",null,null,null,null,"専務",null,null,null,null,"管理",null,null,null,null,null,null,null,null,null,null,null,null,null,null,"支払日",null,null,null,null,null,null,null,null,null,null,null,"年",null,null,null,null,"月",null,null,null,null,null,"日"]
[null,null,null,null,null,null,null,null,null,null,null,null,null,null,null,null,null,null,null,null,null,null,null,null,null,null,null,null,null,null,null,null,null,null,null,"支払金額（税込）\n合計（ア）+（イ）-（ウ）"]
[]
[]
[]
["請　求　書"]
[]
[]
[]
[null,null,null,null,null,null,null,null,null,null,null,null,null,null,null,null,null,null,null,null,null,null,null,null,null,null,null,null,null,null,null,null,null,null,null,null,null,null,null,null,null,null,null,null,null,null,null,null,"年",null,null,null,null,"月",null,null,null,null,"日"]
["株式会社ザイソウハウス　　御中",null,null,null,null,null,null,null,null,null,null,null,null,null,null,null,null,null,null,null,null,null,null,null,null,null,null,null,"適格請求書発行事業者登録の有無",null,null,null,null,null,null,null,null,null,null,null,null,null,null,"　□　有　　　・　　　□　無"]
[]
[null,null,null,null,null,null,null,null,null,null,null,null,null,null,null,null,null,null,null,null,null,null,null,null,null,null,null,null,"〒"]
["工事名"]
[null,null,null,null,null,null,null,null,null,null,null,null,null,null,null,null,null,null,null,null,null,null,null,null,null,null,null,null,"住所"]
[]
["ザイソウハウス",null,null,null,null,null,null,null,null,null,null,null,null,null,null,null,null,null,null,null,null,null,null,null,null,null,null,null,"氏名",null,null,null,null,null,null,null,null,null,null,null,null,null,null,null,null,null,null,null,null,null,null,null,null,null,null,null,null,null,"㊞"]
["工事担当者名"]
[null,null,null,null,null,null,null,null,null,null,null,null,null,null,null,null,null,null,null,null,null,null,null,null,null,null,null,null,"TEL",null,null,null,null,null,null,null,null,null,null,null,null,null,null,null,"FAX"]
[]
["工　事\nコード",null,null,null,null,null,null,null,null,null,null,null,null,null,"区分",null,null,"外",null,null,"材",null,null,"経",null,null,null,null,"登録番号",null,null,null,"Ｔ"]
[]
[null,null,null,null,null,null,null,null,null,null,null,null,null,null,null,null,null,"Ａ",null,null,"Ｂ",null,null,"Ｃ"]
[null,null,null,null,null,null,null,null,null,null,null,null,null,null,null,null,null,null,null,null,null,null,null,null,null,null,null,null,"※新規あるいは変更のある場合のみ記入して下さい。"]
[]
["※以下、太線内に請求内容を記入し各工事現場ごとに提出して下さい。",null,null,null,null,null,null,null,null,null,null,null,null,null,null,null,null,null,null,null,null,null,null,null,null,null,null,null,"振込銀行",null,null,null,null,null,null,null,null,null,null,null,null,null,null,null,null,"銀行",null,null,null,null,null,null,null,null,null,null,null,"支店"]
[]
["※別紙にて追加記入する場合は、タテ向Ａ４用紙を使用すること。"]
[null,null,null,null,null,null,null,null,null,null,null,null,null,null,null,null,null,null,null,null,null,null,null,null,null,null,null,null,"口座",null,null,null,null,null,"普通 　・　 当座",null,null,null,null,null,null,null,null,null,null,"№"]
["＜契約分（税込）＞"]
[]
["契約№",null,null,null,null,null,null,null,null,null,null,null,"第",null,null,null,null,"回目",null,null,null,null,null,null,null,null,null,null,"フリガナ"]
[null,null,null,null,null,null,null,null,null,null,null,null,null,null,null,null,null,null,null,null,null,null,null,null,null,null,null,null,"口座名義"]
["契約内容"]
[]
[]
["当月の契約分請求金額①",null,null,null,null,null,null,null,null,null,null,null,null,null,null,null,null,null,null,null,null,null,null,null,null,null,null,null,null,null,null,null,null,null,null,null,null,null,"契約分査定（ア）　（税込）"]
[]
["契約金額"]
[]
["出来高金額",null,null,null,null,null,null,null,null,null,null,null,null,null,null,null,null,null,null,null,null,null,null,null,null,null,null,null,null,null,null,null,null,null,null,null,null,null,null,null,null,null,null,null,null,null,null,null,"％"]
[]
["前月までの受領金額"]
[]
["＜契約外（税込）＞",null,null,null,null,null,null,null,null,null,"※必ず日付を記入して下さい。（○／○～○／○と項目欄に記入も可）"]
[]
["日付",null,null,"項目",null,null,null,null,null,null,null,null,null,null,null,null,null,"税率",null,"単位",null,"数量",null,null,"単価（税込）",null,null,null,"金額（税込）",null,null,null,null,null,null,null,null,null,"契約外査定　（税込）",null,null,null,null,null,null,null,null,null,null,null,"金額"]
[null,null,null,null,null,null,null,null,null,null,null,null,null,null,null,null,null,null,null,null,null,null,null,null,null,null,null,null,null,null,null,null,null,null,null,null,null,null,"(※は8％対象　　*は非課税対象)"]
["／"]
[]
["／"]
[]
["／"]
[]
["／"]
[]
["／"]
[]
["／"]
[]
["／",null,null,null,null,null,null,null,null,null,null,null,null,null,null,null,null,null,null,null,null,null,null,null,null,null,null,null,null,null,null,null,null,null,null,null,null,null,"契約外査定　計（イ）"]
[]
["／",null,null,null,null,null,null,null,null,null,null,null,null,null,null,null,null,null,null,null,null,null,null,null,null,null,null,null,null,null,null,null,null,null,null,null,null,null,"内消費税（10％）"]
[null,null,null,null,null,null,null,null,null,null,null,null,null,null,null,null,null,null,null,null,null,null,null,null,null,null,null,null,null,null,null,null,null,null,null,null,null,null,"対象額（　　　　　　　　　　　　　　　　　　　）"]
["／",null,null,null,null,null,null,null,null,null,null,null,null,null,null,null,null,null,null,null,null,null,null,null,null,null,null,null,null,null,null,null,null,null,null,null,null,null,"内消費税（ 8％）　※"]
[null,null,null,null,null,null,null,null,null,null,null,null,null,null,null,null,null,null,null,null,null,null,null,null,null,null,null,null,null,null,null,null,null,null,null,null,null,null,"対象額（　　　　　　　　　　　　　　　　　　　）"]
["／",null,null,null,null,null,null,null,null,null,null,null,null,null,null,null,null,null,null,null,null,null,null,null,null,null,null,null,null,null,null,null,null,null,null,null,null,null,"内非課税　*"]
[null,null,null,null,null,null,null,null,null,null,null,null,null,null,null,null,null,null,null,null,null,null,null,null,null,null,null,null,null,null,null,null,null,null,null,null,null,null,"対象額（　　　　　　　　　　　　　　　　　　　）"]
["／"]
[]
["／",null,null,null,null,null,null,null,null,null,null,null,null,null,null,null,null,null,null,null,null,null,null,null,null,null,null,null,null,null,null,null,null,null,null,null,null,null,"立替項目　（税込）",null,null,null,null,null,null,null,null,null,null,null,"金額"]
[null,null,null,null,null,null,null,null,null,null,null,null,null,null,null,null,null,null,null,null,null,null,null,null,null,null,null,null,null,null,null,null,null,null,null,null,null,null,"(※は8％対象　　*は非課税対象)"]
["／"]
[]
["小計"]
[]
["対象額",null,null,null,"（",null,null,null,null,null,null,null,null,null,null,"）","内消費税額（10％）"]
[]
["対象額",null,null,null,"（",null,null,null,null,null,null,null,null,null,null,"）","内消費税額（ 8％）",null,null,null,null,null,null,null,null,null,null,null,null,null,null,null,null,null,null,null,null,null,"立替相殺　計（ウ）"]
[]
["対象額",null,null,null,"（",null,null,null,null,null,null,null,null,null,null,"）","内非課税",null,null,null,null,null,null,null,null,null,null,null,null,null,null,null,null,null,null,null,null,null,"内消費税（10％）"]
[null,null,null,null,null,null,null,null,null,null,null,null,null,null,null,null,null,null,null,null,null,null,null,null,null,null,null,null,null,null,null,null,null,null,null,null,null,null,"対象額（　　　　　　　　　　　　　　　　　　　）"]
[null,null,null,null,null,null,null,null,null,null,null,null,null,null,null,null,null,null,null,null,null,null,null,null,null,null,null,null,null,null,null,null,null,null,null,null,null,null,"内消費税（ 8％）　※"]
[null,null,null,null,null,null,null,null,null,null,null,null,null,null,null,null,null,null,null,null,null,null,null,null,null,null,null,null,null,null,null,null,null,null,null,null,null,null,"対象額（　　　　　　　　　　　　　　　　　　　）"]
["当月請求金額　合計①＋②",null,null,null,null,null,null,null,null,null,null,null,null,null,null,null,null,null,null,null,null,null,null,null,null,null,null,null,null,null,null,null,null,null,null,null,null,null,"内非課税　*"]
[null,null,null,null,null,null,null,null,null,null,null,null,null,null,null,null,null,null,null,null,null,null,null,null,null,null,null,null,null,null,null,null,null,null,null,null,null,null,"対象額（　　　　　　　　　　　　　　　　　　　）"]